{"text_format":"3","workbook":"xlsx","n_sheets":4,"sheets":["1. Stammdaten (Empfänger)","Budget Finanzierungen","Weiterleitung von Mitteln","Beispiel"],"not_rendered":{"defined_names":7},"read":"whole","date_system":"1900"}

{"sheet":"1. Stammdaten (Empfänger)","index":0,"n_rows":22,"n_cols":10,"rows_kept":22,"merged":[[0,1,0,6],[0,9,0,14],[2,2,2,6],[4,2,4,4],[5,2,5,6],[6,4,6,6],[7,4,7,6],[15,3,15,6],[16,3,16,6],[17,3,17,6],[18,3,18,6],[19,2,19,6],[21,2,21,6]]}
[null,"Stammdaten",{"$nulls":7},"Bearbeitungshinweise für den Finanzierungsempfänger:\nBitte füllen Sie zuerst die folgenden Stammdaten aus, bevor Sie dann den Reiter \"Budget\" ausfüllen\nBitte füllen Sie nur die blau hinterlegten Zellen aus. Alle anderen Zellen werden automatisch berechnet."]
[]
[null,"Name des Empfängers: ",{"$nulls":5},{"$f":"IF(C3=\"Bitte eintragen\",\"- Bitte den Namen Ihres Vereins im Feld <Name des Zuschussempfängers> eintragen; \",\" \")","v":" "}]
[]
[null,"Handelt es sich um  das erste Budget \noder um eine Vertragsanpassung?","Auswählen",null,null,{"$f":"IF(C5=\"Vertragsanpassung\",\"Wievielte Vertrags-anpassung?:\",\"\")","v":""},"Nur bei Vertragsergänzung auswählen",{"$f":"IF(C5=\"Vertragsanpassung\",1,0)","v":0}]
[null,"Titel des Projekts & Vertragsnummer",{"$nulls":5},{"$f":"IF(C6=\"Veranstaltung\",1,IF(C6=\"Projekt\",1,0))","v":0}]
[null,"Benötigen Sie Verwaltungsgemeinkosten?","Auswählen","Bitte die Höhe der Verwaltungsgemein-kosten in Prozent angeben ",{"$nulls":3},{"$f":"IF(C7=\"Ja, anderer Betrag\",1,0)","v":0}]
[null,"Leisten Sie einen \n(finanziellen) Eigenbeitrag?","Auswählen","Höhe in EUR",{"$nulls":3},{"$f":"IF(C8=\"Ja, anderer Betrag\",1,0)","v":0}]
[null,"Von wie vielen Gebern soll das Projekt mitfinanziert werden  (neben der GIZ)?","Auswählen","Name des Drittmittelgebers",null,"Höhe der Drittmittel in EUR"]
[{"$nulls":3},"Name des Drittmittelgebers",null,"Höhe der Drittmittel in EUR",null,{"$f":"IF(C10=\"Ja\",1,0)","v":0}]
[{"$nulls":3},"Name des Drittmittelgebers",null,"Höhe der Drittmittel in EUR",null,{"$f":"IF(C11=\"Ja\",1,0)","v":0}]
[{"$nulls":3},"Name des Drittmittelgebers",null,"Höhe der Drittmittel in EUR"]
[{"$nulls":3},"Name des Drittmittelgebers",null,"Höhe der Drittmittel in EUR"]
[{"$nulls":3},"Name des Drittmittelgebers",null,"Höhe der Drittmittel in EUR"]
[{"$nulls":3},"Name des Drittmittelgebers",null,"Höhe der Drittmittel in EUR"]
[null,"Sollen Mittel an Drittempfänger weitergeleitet werden? (Bitte beachten Sie, dass hiermit keine Leistungen gemeint sind) ","Auswählen","Das sind Partner die eigenständig einen Teil des Empfängerprojekts umsetzten. Es muss ein gesondertes Budget eingereicht und eine kaufmännische und rechtliche Eignungsprüfung (nur die Kriterien: Rechtspersönlichkeit und Gemeinnützigkeit) durch das GIZ-Projekt durchgeführt werden. "]
[null,"Werden Medikamente und Pestizide und Mineraldünger beschafft?  ","Auswählen","Ein gesonderter GIZ-interner Genehmigungsprozess ist notwendig"]
[null,"Sachbeschaffungsanteil von mehr als EUR 1.000.000 oder mehr als 50%  bei einem Vertragswert der Finanzierung von mindestens EUR 400.000?","Auswählen","Ein gesonderter GIZ-interner Genehmigungsprozess ist notwendig"]
[null,"Werden Baumaßnahmen finanziert?  ","Auswählen","Ein gesonderter GIZ- interner Genehmigungsprozess ist notwendig.  \nBitte beachten Sie, dass Baumaßnahmen im Rahmen eines örtlichen Zuschusses nur in seltenen Ausnahmen durch die GIZ erlaubt werden."]
[null,"Sollen im Budget Ausfüllhilfen angezeigt werden? \n\"Ja\" zum Bearbeiten empfohlen\n\"Nein\" zur besseren Übersicht empfohlen","Ja"]
[]
[null,"Datum der Erstellung des Budgets:"]

{"sheet":"Budget Finanzierungen","index":1,"n_rows":173,"n_cols":15,"rows_kept":173,"merged":[[0,0,0,8],[0,14,0,23],[2,14,2,23],[3,1,3,7],[3,8,3,9],[4,3,4,7],[4,9,142,9],[42,3,42,7],[43,4,43,6],[44,4,44,6],[45,4,45,6],[46,4,46,6],[47,4,47,6],[48,4,48,6],[49,4,49,6],[50,4,50,6],[51,4,51,6],[52,4,52,6],[53,4,53,6],[54,4,54,6],[55,4,55,6],[56,4,56,6],[57,4,57,6],[58,4,58,6],[59,4,59,6],[60,4,60,6],[61,4,61,6],[62,4,62,6],[63,4,63,6],[64,4,64,6],[65,4,65,6],[66,4,66,6],[67,4,67,6],[68,4,68,6],[69,4,69,6],[70,4,70,6],[71,4,71,6],[72,3,72,7],[73,4,73,6],[74,4,74,6],[75,4,75,6],[76,4,76,6],[77,4,77,6],[78,4,78,6],[79,4,79,6],[80,4,80,6],[81,4,81,6],[82,4,82,6],[83,4,83,6],[84,4,84,6],[85,4,85,6],[86,4,86,6],[87,4,87,6],[88,4,88,6],[89,4,89,6],[90,4,90,6],[91,3,91,7],[92,4,92,6],[93,4,93,6],[94,4,94,6],[95,4,95,6],[96,4,96,6],[97,4,97,6],[98,4,98,6],[99,4,99,6],[100,4,100,6],[101,4,101,6],[102,4,102,6],[103,4,103,6],[104,4,104,6],[105,4,105,6],[106,4,106,6],[107,4,107,6],[108,3,108,7],[109,4,109,6],[110,4,110,6],[111,4,111,6],[112,4,112,6],[113,4,113,6],[114,4,114,6],[115,4,115,6],[116,4,116,6],[117,4,117,6],[118,4,118,6],[119,4,119,6],[120,4,120,6],[121,4,121,6],[122,4,122,6],[123,4,123,6],[124,4,124,6],[125,3,125,7],[136,3,136,7],[142,1,142,7],[143,3,143,7],[146,3,146,7],[154,3,154,7],[163,1,163,7],[163,8,163,9],[165,1,165,10],[167,1,168,9],[169,1,169,9],[170,1,170,9],[172,1,172,9]]}
[{"$f":"IF('1. Stammdaten (Empfänger)'!C3=\"\",\"BITTE ZUERST REITER 'Stammdaten' AUSFÜLLEN (s.u.)\",CONCATENATE(\"Budget / Finanzierungsplan - Anlage 1\",CHAR(10),'1. Stammdaten (Empfänger)'!C3,\" - \",'1. Stammdaten (Empfänger)'!C6,\"\",'1. Stammdaten (Empfänger)'!E6,\"\",IF(L4=\"VE\",CONCATENATE(\" - \",'1. Stammdaten (Empfänger)'!G5,\" VERTRAGSERGÄNZUNG\",\"\"),\"\")))","v":"BITTE ZUERST REITER 'Stammdaten' AUSFÜLLEN (s.u.)"},{"$nulls":8},{"$f":"'1. Stammdaten (Empfänger)'!C22","v":"00:00:00"},{"$nulls":3},"Keine Änderung","Bearbeitunghinweise:\nBitte füllen Sie zuerst die Stammdaten aus, bevor Sie dann diesen Reiter \"Budget\" ausfüllen.\nBitte füllen Sie im Reiter 'Budget' nur die blau hinterlegten Zellen aus. Alle anderen Zellen werden automatisch berechnet."]
[{"$nulls":9},"2023-08",{"$nulls":3},"Änderung"]
[null,"Beschreibung","Code","Anzahl ","Einheit (z.B. Person, Fahrzeug, Raum…)","Anzahl","Einheit (z.B. Monate, Tage, Trainings…)","Förderfähig bis zu  \nin EUR \n(Preis pro Einheit) ","Gesamt \nGIZ Anteil \nin EUR (bis zu)","Eigenbeitrag / Dritt-finanzierung \nin EUR (bis zu) ",null,{"$f":"IF($L$4=\"VE\",CONCATENATE(\"Bei Vertragsanpassungen:\",CHAR(10),\"hat sich diese Budgetzeile geändert?\"),\"\")","v":""},null,null,"Generelle Hinweise: \nDieses Format des Budgets gilt als Abrechnungsgrundlage. Sie können gerne für Ihren internen Gebrauch weitere Dateien mit ausführlicheren Informationen erstellen.\nAlle Positionen, die im Budget aufgeführt sind, müssen sich in der Projektbeschreibung wiederfinden, um den Projektbezug ersichtlich zu machen. \nDie Tabelle ist mit Formeln gespeist, welche beibehalten werden müssen.  \nBitte behalten Sie die Formatierung mit zwei Nachkommastellen bei. \nEs empfiehlt sich, Einheiten, wenn möglich, aufzurunden. Die Kosten werden mit einem Wert \"bis zu\" vereinbart. "]
[null,{"$f":"IF('1. Stammdaten (Empfänger)'!C20=\"Ja\",CONCATENATE(\"Hinweis: Blaue Felder durch \",IF('1. Stammdaten (Empfänger)'!C3=\"\",\"den Zuschussempfänger\",'1. Stammdaten (Empfänger)'!C3),\" auszufüllen\"),\"\")","v":"Hinweis: Blaue Felder durch den Zuschussempfänger auszufüllen"},{"$nulls":6},{"$f":"IF('1. Stammdaten (Empfänger)'!C20=\"Ja\",\"Hinweis: Wird automatisch ausgefüllt\",\"\")","v":"Hinweis: Wird automatisch ausgefüllt"},null,null,{"$f":"IF('1. Stammdaten (Empfänger)'!C5=\"Vertragsanpassung\",\"VE\",\"NOVE\")","v":"NOVE"}]
[1,"Personal - Selbstkosten für Arbeit-nehmer*innen des ZE (Funktionsbezeichnung)\n(Hinweis 1: Nur Mitarbeiter/innen Ihrer Organisationen; \nder Nachweis dieser Budgetlinie muss in Form von Gehaltsabrechnungen bzw. bei Teilfinanzierungen in Form von Gehaltsabrechnungen und Zeitaufschrieben erfolgen; \nHinweis 2: Es können ausschließlich Personaleinzelkosten (Arbeitgeberbrutto) abgerechnet werden, Zuschläge wie Personalgemeinkosten, die anteilig auf Personal berechnet werden, sind nicht förderungsfähig)",null,{"$f":"IF('1. Stammdaten (Empfänger)'!C20=\"Ja\",CONCATENATE(\"AUSFÜLLHILFE: \",Beispiel!O5),\"\")","v":"AUSFÜLLHILFE: Die Spalte \"Förderfähig bis zu\" sollte immer das Arbeitgeberbrutto ausweisen. Bei Teilzeitstellen ist der Prozentsatz in Spalte D anzugeben. Bitte geben Sie an, welche gesetzlichen Personalnebenkosten für Ihr Land anfallen. Grundsätzlich finanzierbar sind Sozialabgaben, und arbeitsvertraglich oder tariflichvertraglich vereinbarte Zahlungen (ausgenommen sind Bonuszahlungen oder Gewinnbeteiligungen). Davon abweichende Nebenkosten müssen vor Vertragserstellung abgesprochen,  geprüft  und als Notiz in die Budgetzeile aufgenommen werden. Verträge über Minijobs oder studentische Hilfskräfte sind den Personalkosten zuzuordnen, auch wenn keine Sozialabgaben anfallen.                                                                                                                                                                                         Wenn anteilig mehrere Personen finanziert werden sollen (bspw. 3 Personen à 75% - bitte entsprechend die Anzahl der Monate erhöhen und die Anzahl der Personen in der Beschreibung der Budgetlinie aufnehmen."},{"$nulls":4},{"$f":"SUM(I6:I42)","v":{"v":0,"d":"0.00 €"}},"Die GIZ kann keine Budgetlinien anteilig übernehmen, mit Ausnahme der Hauptbudgetlinien \"Personalkosten\", die prozentual angesetzt werden können, sowie  \"Anteilige lokale Projektkosten\". \n\nWeitere Kosten, welche im Rahmen der Projektumsetzung anfallen und nicht durch die GIZ übernommen werden sollen, werden separat kalkuliert. Entweder als Eigenanteil, oder, falls einschlägig, als finanzieller Beitrag eines Dritten/ Drittfinanzierung.",null,{"$f":"IF(L4=\"VE\",\"ACHTUNG: Kosten, die aufgrund von Währungsschwankungen entstehen, können nicht von der GIZ übernommen werden.\",\"\")","v":""}]
[{"$nulls":4},"Person ",null,"Monate ",null,{"$f":"ROUND(D6*F6*H6,2)","v":{"v":0,"d":"0.00 €"}},null,null,"Keine Änderung"]
[{"$nulls":4},"Person ",null,"Monate ",null,{"$f":"ROUND(D7*F7*H7,2)","v":{"v":0,"d":"0.00 €"}},null,null,"Keine Änderung"]
[{"$nulls":4},"Person ",null,"Monate ",null,{"v":0,"d":"0.00 €"},null,null,"Keine Änderung"]
[{"$nulls":4},"Person ",null,"Monate ",null,{"v":0,"d":"0.00 €"},null,null,"Keine Änderung"]
[{"$nulls":4},"Person ",null,"Monate ",null,{"v":0,"d":"0.00 €"},null,null,"Keine Änderung"]
[{"$nulls":4},"Person ",null,"Monate ",null,{"v":0,"d":"0.00 €"},null,null,"Keine Änderung"]
[{"$nulls":4},"Person ",null,"Monate ",null,{"v":0,"d":"0.00 €"},null,null,"Keine Änderung"]
[{"$nulls":4},"Person ",null,"Monate ",null,{"v":0,"d":"0.00 €"},null,null,"Keine Änderung"]
[{"$nulls":4},"Person ",null,"Monate ",null,{"v":0,"d":"0.00 €"},null,null,"Keine Änderung"]
[{"$nulls":4},"Person ",null,"Monate ",null,{"$f":"ROUND(D15*F15*H15,2)","v":{"v":0,"d":"0.00 €"}},null,null,"Keine Änderung"]
[{"$nulls":4},"Person ",null,"Monate ",null,{"v":0,"d":"0.00 €"},null,null,"Keine Änderung"]
[{"$nulls":4},"Person ",null,"Monate ",null,{"v":0,"d":"0.00 €"},null,null,"Keine Änderung"]
[{"$nulls":4},"Person ",null,"Monate ",null,{"v":0,"d":"0.00 €"},null,null,"Keine Änderung"]
[{"$nulls":4},"Person ",null,"Monate ",null,{"v":0,"d":"0.00 €"},null,null,"Keine Änderung"]
[{"$nulls":4},"Person ",null,"Monate ",null,{"v":0,"d":"0.00 €"},null,null,"Keine Änderung"]
[{"$nulls":4},"Person ",null,"Monate ",null,{"v":0,"d":"0.00 €"},null,null,"Keine Änderung"]
[{"$nulls":4},"Person ",null,"Monate ",null,{"v":0,"d":"0.00 €"},null,null,"Keine Änderung"]
[{"$nulls":4},"Person ",null,"Monate ",null,{"v":0,"d":"0.00 €"},null,null,"Keine Änderung"]
[{"$nulls":4},"Person ",null,"Monate ",null,{"v":0,"d":"0.00 €"},null,null,"Keine Änderung"]
[{"$nulls":4},"Person ",null,"Monate ",null,{"v":0,"d":"0.00 €"},null,null,"Keine Änderung"]
[{"$nulls":4},"Person ",null,"Monate ",null,{"$f":"ROUND(D26*F26*H26,2)","v":{"v":0,"d":"0.00 €"}},null,null,"Keine Änderung"]
[{"$nulls":4},"Person ",null,"Monate ",null,{"v":0,"d":"0.00 €"},null,null,"Keine Änderung"]
[{"$nulls":4},"Person ",null,"Monate ",null,{"v":0,"d":"0.00 €"},null,null,"Keine Änderung"]
[{"$nulls":4},"Person ",null,"Monate ",null,{"v":0,"d":"0.00 €"},null,null,"Keine Änderung"]
[{"$nulls":4},"Person ",null,"Monate ",null,{"v":0,"d":"0.00 €"},null,null,"Keine Änderung"]
[{"$nulls":4},"Person ",null,"Monate ",null,{"v":0,"d":"0.00 €"},null,null,"Keine Änderung"]
[{"$nulls":4},"Person ",null,"Monate ",null,{"v":0,"d":"0.00 €"},null,null,"Keine Änderung"]
[{"$nulls":4},"Person ",null,"Monate ",null,{"v":0,"d":"0.00 €"},null,null,"Keine Änderung"]
[{"$nulls":4},"Person ",null,"Monate ",null,{"v":0,"d":"0.00 €"},null,null,"Keine Änderung"]
[{"$nulls":4},"Person ",null,"Monate ",null,{"v":0,"d":"0.00 €"},null,null,"Keine Änderung"]
[{"$nulls":4},"Person ",null,"Monate ",null,{"v":0,"d":"0.00 €"},null,null,"Keine Änderung"]
[{"$nulls":4},"Person ",null,"Monate ",null,{"v":0,"d":"0.00 €"},null,null,"Keine Änderung"]
[{"$nulls":4},"Person ",null,"Monate ",null,{"v":0,"d":"0.00 €"},null,null,"Keine Änderung"]
[{"$nulls":4},"Person ",null,"Monate ",null,{"v":0,"d":"0.00 €"},null,null,"Keine Änderung"]
[{"$nulls":4},"Person ",null,"Monate ",null,{"v":0,"d":"0.00 €"},null,null,"Keine Änderung"]
[{"$nulls":4},"Person ",null,"Monate ",null,{"v":0,"d":"0.00 €"},null,null,"Keine Änderung"]
[{"$nulls":4},"Person ",null,"Monate ",null,{"v":0,"d":"0.00 €"},null,null,"Keine Änderung"]
[2,"Externe Dienstleistungen (Art/Inhalt der Leistung)",null,{"$f":"IF('1. Stammdaten (Empfänger)'!C20=\"Ja\",CONCATENATE(\"AUSFÜLLHILFE: \",Beispiel!O11),\"\")","v":"AUSFÜLLHILFE: Funktionstitel angeben; keine Details des Vertrages  (Arbeitsstunden etc); nur die Anzahl der Verträge und den geplanten Wert nennen (die relevanten Vergaberichtlinien gemäß Vertragstext müssen eingehalten werden!);  pro Vertrag sollte eine Budgetzeile verwendet werden;  alle Kosten, die im Rahmen der Leistungserbringung unter einem Dienstleistungsvertrag anfallen (bspw. Training, Reisen), werden in einer Budgetlinie dargestellt.                                                                                                                                                                                                              Veranstaltungen: Leistungen die vom selben Anbieter erbracht werden, sollen in einer Budgetzeile dargestellt werden. (z. Bsp: wenn Catering und der Veranstaltungsort von einem Hotel angeboten werden, dann gehören diese in eine Budgetzeile, wenn ein anderes Hotel für Übernachtungen gebucht wird, gehört dieses in eine einzelne Budgetlinie)  Einnahmen, die der Empfänger aus dem Veranstaltungsbetrieb erhält, können nicht aus dem Vertrag finanziert werden (z. Bsp Raummiete für eigene Räumlichkeiten). Nur tatsächliche nachweisbare Kosten werden finanziert."},{"$nulls":4},{"$f":"SUM(I44:I72)","v":{"v":0,"d":"0.00 €"}}]
[{"$nulls":4},"Vertrag ",{"$nulls":3},{"$f":"ROUND(D44*H44,2)","v":{"v":0,"d":"0.00 €"}},null,null,"Keine Änderung"]
[{"$nulls":4},"Vertrag ",{"$nulls":3},{"v":0,"d":"0.00 €"},null,null,"Keine Änderung"]
[{"$nulls":4},"Vertrag ",{"$nulls":3},{"v":0,"d":"0.00 €"},null,null,"Keine Änderung"]
[{"$nulls":4},"Vertrag ",{"$nulls":3},{"v":0,"d":"0.00 €"},null,null,"Keine Änderung"]
[{"$nulls":4},"Vertrag ",{"$nulls":3},{"v":0,"d":"0.00 €"},null,null,"Keine Änderung"]
[{"$nulls":4},"Vertrag ",{"$nulls":3},{"v":0,"d":"0.00 €"},null,null,"Keine Änderung"]
[{"$nulls":4},"Vertrag ",{"$nulls":3},{"v":0,"d":"0.00 €"},null,null,"Keine Änderung"]
[{"$nulls":4},"Vertrag ",{"$nulls":3},{"v":0,"d":"0.00 €"},null,null,"Keine Änderung"]
[{"$nulls":4},"Vertrag ",{"$nulls":3},{"v":0,"d":"0.00 €"},null,null,"Keine Änderung"]
[{"$nulls":4},"Vertrag ",{"$nulls":3},{"v":0,"d":"0.00 €"},null,null,"Keine Änderung"]
[{"$nulls":4},"Vertrag ",{"$nulls":3},{"v":0,"d":"0.00 €"},null,null,"Keine Änderung"]
[{"$nulls":4},"Vertrag ",{"$nulls":3},{"$f":"ROUND(D55*H55,2)","v":{"v":0,"d":"0.00 €"}},null,null,"Keine Änderung"]
[{"$nulls":4},"Vertrag ",{"$nulls":3},{"v":0,"d":"0.00 €"},null,null,"Keine Änderung"]
[{"$nulls":4},"Vertrag ",{"$nulls":3},{"v":0,"d":"0.00 €"},null,null,"Keine Änderung"]
[{"$nulls":4},"Vertrag ",{"$nulls":3},{"v":0,"d":"0.00 €"},null,null,"Keine Änderung"]
[{"$nulls":4},"Vertrag ",{"$nulls":3},{"$f":"ROUND(D59*H59,2)","v":{"v":0,"d":"0.00 €"}},null,null,"Keine Änderung"]
[{"$nulls":4},"Vertrag ",{"$nulls":3},{"v":0,"d":"0.00 €"},null,null,"Keine Änderung"]
[{"$nulls":4},"Vertrag ",{"$nulls":3},{"v":0,"d":"0.00 €"},null,null,"Keine Änderung"]
[{"$nulls":4},"Vertrag ",{"$nulls":3},{"v":0,"d":"0.00 €"},null,null,"Keine Änderung"]
[{"$nulls":4},"Vertrag ",{"$nulls":3},{"v":0,"d":"0.00 €"},null,null,"Keine Änderung"]
[{"$nulls":4},"Vertrag ",{"$nulls":3},{"v":0,"d":"0.00 €"},null,null,"Keine Änderung"]
[{"$nulls":4},"Vertrag ",{"$nulls":3},{"v":0,"d":"0.00 €"},null,null,"Keine Änderung"]
[{"$nulls":4},"Vertrag ",{"$nulls":3},{"v":0,"d":"0.00 €"},null,null,"Keine Änderung"]
[{"$nulls":4},"Vertrag ",{"$nulls":3},{"v":0,"d":"0.00 €"},null,null,"Keine Änderung"]
[{"$nulls":4},"Vertrag ",{"$nulls":3},{"v":0,"d":"0.00 €"},null,null,"Keine Änderung"]
[{"$nulls":4},"Vertrag ",{"$nulls":3},{"v":0,"d":"0.00 €"},null,null,"Keine Änderung"]
[{"$nulls":4},"Vertrag ",{"$nulls":3},{"v":0,"d":"0.00 €"},null,null,"Keine Änderung"]
[{"$nulls":4},"Vertrag ",{"$nulls":3},{"v":0,"d":"0.00 €"},null,null,"Keine Änderung"]
[{"$nulls":4},"Vertrag ",{"$nulls":3},{"v":0,"d":"0.00 €"},null,null,"Keine Änderung"]
[3,"Transportkosten / Reisekosten",null,{"$f":"IF('1. Stammdaten (Empfänger)'!C20=\"Ja\",CONCATENATE(\"AUSFÜLLHILFE: \",Beispiel!O22),\"\")","v":"AUSFÜLLHILFE: Zu Reisekosten zählen üblicherweise alle Arten von Transport, Übernachtungen, Tagegelder, Visa. Anderweitige Kosten sind bitte separat aufzuführen.  Die Abrechnung erfolgt anhand der Rechnungen und/oder der Reiserichtlinien des Empfängers und/oder gesetzlichen Vorgaben (zum Bsp: Bundesreisekostengesetz) . Eine Aufteilung in verschiedene Personengruppen ist nicht erwünscht.\n\nBitte geben Sie keine Menge der Flüge an - bei Abweichungen sind Vertragsergänzungen notwendig und solle ein Audit stattfinden wird die Zahl der Flüge geprüft."},{"$nulls":4},{"$f":"SUM(I74:I91)","v":{"v":0,"d":"0.00 €"}}]
[{"$nulls":8},{"$f":"ROUND(D74*H74,2)","v":{"v":0,"d":"0.00 €"}},null,null,"Keine Änderung"]
[{"$nulls":8},{"v":0,"d":"0.00 €"},null,null,"Keine Änderung"]
[{"$nulls":8},{"v":0,"d":"0.00 €"},null,null,"Keine Änderung"]
[{"$nulls":8},{"v":0,"d":"0.00 €"},null,null,"Keine Änderung"]
[{"$nulls":8},{"v":0,"d":"0.00 €"},null,null,"Keine Änderung"]
[{"$nulls":8},{"v":0,"d":"0.00 €"},null,null,"Keine Änderung"]
[{"$nulls":8},{"$f":"ROUND(D80*H80,2)","v":{"v":0,"d":"0.00 €"}},null,null,"Keine Änderung"]
[{"$nulls":8},{"v":0,"d":"0.00 €"},null,null,"Keine Änderung"]
[{"$nulls":8},{"v":0,"d":"0.00 €"},null,null,"Keine Änderung"]
[{"$nulls":8},{"v":0,"d":"0.00 €"}]
[{"$nulls":8},{"v":0,"d":"0.00 €"},null,null,"Keine Änderung"]
[{"$nulls":8},{"v":0,"d":"0.00 €"},null,null,"Keine Änderung"]
[{"$nulls":8},{"v":0,"d":"0.00 €"},null,null,"Keine Änderung"]
[{"$nulls":8},{"v":0,"d":"0.00 €"},null,null,"Keine Änderung"]
[{"$nulls":8},{"v":0,"d":"0.00 €"},null,null,"Keine Änderung"]
[{"$nulls":8},{"v":0,"d":"0.00 €"}]
[{"$nulls":8},{"v":0,"d":"0.00 €"}]
[{"$nulls":8},{"v":0,"d":"0.00 €"}]
[4,"Beschaffung von Sachgütern",null,{"$f":"IF('1. Stammdaten (Empfänger)'!C20=\"Ja\",CONCATENATE(\"AUSFÜLLHILFE: \",Beispiel!O35),\"\")","v":"AUSFÜLLHILFE: Güter, die beschafft und innerhalb von einer Rechnung nachgewiesen werden, sollten in einer Budgetzeile dargestellt werden. Z. B. kann IT Equipment als eine Budgetlinie aufgeführt werden - in diesem Fall sollte in Klammern näher definiert werden, welche Sachgüter voraussichtlich beschafft werden. Im Fall von Medikamente, Pestiziden oder Mineraldünger sind weitere Details für eine Freigabe notwendig. "},{"$nulls":4},{"$f":"SUM(I93:I108)","v":{"v":0,"d":"0.00 €"}},null,{"$f":"IF(I154>400000,1,0)+(IF(I92>(I154/2),1,0))","v":0}]
[{"$nulls":8},{"$f":"ROUND(D93*H93,2)","v":{"v":0,"d":"0.00 €"}},null,null,"Keine Änderung"]
[{"$nulls":8},{"v":0,"d":"0.00 €"},null,null,"Keine Änderung"]
[{"$nulls":8},{"v":0,"d":"0.00 €"},null,null,"Keine Änderung"]
[{"$nulls":8},{"v":0,"d":"0.00 €"},null,null,"Keine Änderung"]
[{"$nulls":8},{"v":0,"d":"0.00 €"},null,null,"Keine Änderung"]
[{"$nulls":8},{"$f":"ROUND(D98*H98,2)","v":{"v":0,"d":"0.00 €"}},null,null,"Keine Änderung"]
[{"$nulls":8},{"v":0,"d":"0.00 €"},null,null,"Keine Änderung"]
[{"$nulls":8},{"v":0,"d":"0.00 €"},null,null,"Keine Änderung"]
[{"$nulls":8},{"v":0,"d":"0.00 €"},null,null,"Keine Änderung"]
[{"$nulls":8},{"v":0,"d":"0.00 €"},null,null,"Keine Änderung"]
[{"$nulls":8},{"$f":"ROUND(D103*H103,2)","v":{"v":0,"d":"0.00 €"}},null,null,"Keine Änderung"]
[{"$nulls":8},{"v":0,"d":"0.00 €"},null,null,"Keine Änderung"]
[{"$nulls":8},{"v":0,"d":"0.00 €"},null,null,"Keine Änderung"]
[{"$nulls":8},{"v":0,"d":"0.00 €"},null,null,"Keine Änderung"]
[{"$nulls":8},{"v":0,"d":"0.00 €"},null,null,"Keine Änderung"]
[{"$nulls":8},{"v":0,"d":"0.00 €"},null,null,"Keine Änderung"]
[5,"Sonstige Kosten / Verbrauchsmaterialien",null,{"$f":"IF('1. Stammdaten (Empfänger)'!C20=\"Ja\",CONCATENATE(\"AUSFÜLLHILFE: \",TRIM(Beispiel!O46)),\"\")","v":"AUSFÜLLHILFE: Bitte beachten Sie dass indirekte Kosten unter die Verwaltungsgemeinkosten fallen. Es können nur direkte Kosten als einzelne Budgetlinien budgetiert werden.\nWenn Mietkosten angegeben werden können nur direkte Kosten, sprich die Kaltmiete, kalkuliert werden. Die Nebenkosten sind als indirekte Kosten und somit in die Verwaltungsgemeinkosten mit einzurechnen. \nIm Gegensatz zu beschafften Sachgütern, die über einen längeren Zeitraum verwendet werden, handelt es sich bei Verbrauchsmaterialien um Güter, die aufgebraucht werden - wie bspw. Druckerpatronen, Druckerpapier."},{"$nulls":4},{"$f":"SUM(I110:I125)","v":{"v":0,"d":"0.00 €"}}]
[{"$nulls":8},{"$f":"ROUND(D110*H110,2)","v":{"v":0,"d":"0.00 €"}},null,null,"Keine Änderung"]
[{"$nulls":8},{"v":0,"d":"0.00 €"},null,null,"Keine Änderung"]
[{"$nulls":8},{"v":0,"d":"0.00 €"},null,null,"Keine Änderung"]
[{"$nulls":8},{"v":0,"d":"0.00 €"},null,null,"Keine Änderung"]
[{"$nulls":8},{"v":0,"d":"0.00 €"},null,null,"Keine Änderung"]
[{"$nulls":8},{"$f":"ROUND(D115*H115,2)","v":{"v":0,"d":"0.00 €"}},null,null,"Keine Änderung"]
[{"$nulls":8},{"v":0,"d":"0.00 €"},null,null,"Keine Änderung"]
[{"$nulls":8},{"v":0,"d":"0.00 €"},null,null,"Keine Änderung"]
[{"$nulls":8},{"v":0,"d":"0.00 €"},null,null,"Keine Änderung"]
[{"$nulls":8},{"$f":"ROUND(D119*H119,2)","v":{"v":0,"d":"0.00 €"}},null,null,"Keine Änderung"]
[{"$nulls":8},{"v":0,"d":"0.00 €"},null,null,"Keine Änderung"]
[{"$nulls":8},{"v":0,"d":"0.00 €"},null,null,"Keine Änderung"]
[{"$nulls":8},{"v":0,"d":"0.00 €"},null,null,"Keine Änderung"]
[{"$nulls":8},{"v":0,"d":"0.00 €"},null,null,"Keine Änderung"]
[{"$nulls":8},{"v":0,"d":"0.00 €"},null,null,"Keine Änderung"]
[{"$nulls":8},{"v":0,"d":"0.00 €"},null,null,"Keine Änderung"]
[6,"Mittel zur direkten Unterstützung von Drittbegünstigten\n(Hinweis: Diese Budgetlinie bezieht sich vorzugsweise auf Sachbeiträge an Drittbegünstigte, im Falle von finanziellen Beiträgen muss  klar dargestellt werden, wie Zahlungen nachgewiesen  werden. Das Auswahlverfahren für die Drittbegünstigten muss in der Projektbeschreibung verdeutlicht werden)",null,{"$f":"IF('1. Stammdaten (Empfänger)'!C20=\"Ja\",CONCATENATE(\"AUSFÜLLHILFE: \",TRIM(Beispiel!O57)),\"\")","v":"AUSFÜLLHILFE: Bitte den Hinweis in der Budgetzeile beachten. Nachweise müssen im Budget vereinbart und Auswahlkriterien in der Projektbeschreibung dargestellt werden. Wichtig: Hier handelt es sich nur um Begünstigte, die von dem Projekt des Empfängers profitieren. Dazu gehören Start-Up Förderung, Förderung von Initiativen, Cash for Work, Förderwettbewerbe, Stipendien und ähnliches. Absprache zu Nachweisen ist erforderlich. Zu den Details ist eine Beratung beim Vertragsmanagement notwendig."},{"$nulls":4},{"$f":"SUM(I127:I136)","v":{"v":0,"d":"0.00 €"}},null,null,{"$f":"IF(L125=\"VE\",\"ACHTUNG: Kosten, die aufgrund von Währungsschwankungen entstehen, können nicht von der GIZ übernommen werden.\",\"\")","v":""}]
[null,"XXX (Abrechnung erfolgt gegen …)",{"$nulls":6},{"$f":"ROUND(D127*F127*H127,2)","v":{"v":0,"d":"0.00 €"}},null,null,"Keine Änderung"]
[null,"XXX (Abrechnung erfolgt gegen …)",{"$nulls":6},{"$f":"ROUND(D128*F128*H128,2)","v":{"v":0,"d":"0.00 €"}},null,null,"Keine Änderung"]
[null,"XXX (Abrechnung erfolgt gegen …)",{"$nulls":6},{"$f":"ROUND(D129*F129*H129,2)","v":{"v":0,"d":"0.00 €"}},null,null,"Keine Änderung"]
[null,"XXX (Abrechnung erfolgt gegen …)",{"$nulls":6},{"v":0,"d":"0.00 €"},null,null,"Keine Änderung"]
[null,"XXX (Abrechnung erfolgt gegen …)",{"$nulls":6},{"v":0,"d":"0.00 €"},null,null,"Keine Änderung"]
[null,"XXX (Abrechnung erfolgt gegen …)",{"$nulls":6},{"v":0,"d":"0.00 €"},null,null,"Keine Änderung"]
[null,"XXX (Abrechnung erfolgt gegen …)",{"$nulls":6},{"v":0,"d":"0.00 €"},null,null,"Keine Änderung"]
[null,"XXX (Abrechnung erfolgt gegen …)",{"$nulls":6},{"v":0,"d":"0.00 €"},null,null,"Keine Änderung"]
[null,"XXX (Abrechnung erfolgt gegen …)",{"$nulls":6},{"v":0,"d":"0.00 €"},null,null,"Keine Änderung"]
[null,"XXX (Abrechnung erfolgt gegen …)",{"$nulls":6},{"v":0,"d":"0.00 €"},null,null,"Keine Änderung"]
[7,"Anteilige lokale Projektkosten (bspw. IT, Research)",null,{"$f":"IF('1. Stammdaten (Empfänger)'!C20=\"Ja\",CONCATENATE(\"AUSFÜLLHILFE: \",TRIM(Beispiel!O62)),\"\")","v":"AUSFÜLLHILFE: Diese Budgetlinie ist nur für Organisationen, die in ihren Buchhaltungssystemen mit einer Verteilung bzw. Umlage der Gemeinkosten arbeiten und diese entsprechend nachweisen können. Die Nachweisart wird für jeden Einzelfall festgelegt. Ein konkretes Beispiel ist der prozentuale Nachweis anhand der Gesamtkosten und Zeitaufschriebe."},{"$nulls":4},{"$f":"SUM(I138:I142)","v":{"v":0,"d":"0.00 €"}}]
[{"$nulls":8},{"$f":"ROUND(D138*F138*H138,2)","v":{"v":0,"d":"0.00 €"}},null,null,"Keine Änderung"]
[{"$nulls":8},{"$f":"ROUND(D139*F139*H139,2)","v":{"v":0,"d":"0.00 €"}},null,null,"Keine Änderung"]
[{"$nulls":8},{"v":0,"d":"0.00 €"},null,null,"Keine Änderung"]
[{"$nulls":8},{"v":0,"d":"0.00 €"},null,null,"Keine Änderung"]
[{"$nulls":8},{"v":0,"d":"0.00 €"},null,null,"Keine Änderung"]
[null,"Zwischensumme - direkte Kosten",{"$nulls":6},{"$f":"I109+I92+I43+I5+I73+I126+I137","v":{"v":0,"d":"0.00 €"}}]
[8,"Verwaltungsgemeinkosten ",null,{"$f":"IF('1. Stammdaten (Empfänger)'!C20=\"Ja\",CONCATENATE(\"AUSFÜLLHILFE: \",TRIM(Beispiel!O66)),\"\")","v":"AUSFÜLLHILFE: Die Verwaltungsgemeinkosten sollten 0% betragen. Diese werden normalerweise als Eigenbetrag des Finanzierungsempfängers übernommen. Wenn die Übernahme durch den Finanzierungsempfänger nicht möglich ist, kann die GIZ einen kleinen Anteil der Verwaltungsgemeinkosten übernehmen. Die Art und Höhe der Kosten wird ggf. durch einen Wirtschaftsprüfer überprüft. Wenn sich die Verwaltungsgemeinkosten auf weniger Budgetlinien beziehen ist eine Information ans Vertragsmanagement erforderlich."},{"$nulls":4},{"$f":"I145","v":{"v":0,"d":"0.00 €"}}]
[null,"Verwaltungsgemeinkosten (auf Budgetlinie 1-X)",null,{"$f":"'1. Stammdaten (Empfänger)'!E7","v":{"v":0,"d":"0%"}},{"$nulls":3},{"$f":"I143","v":{"v":0,"d":"0.00 €"}},{"$f":"ROUND(D145*H145,2)","v":{"v":0,"d":"0.00 €"}},null,null,"Keine Änderung"]
[null,"Zwischensumme - Finanzierung durch GIZ (bis zu - gegen Nachweis)*\n(direkte Kosten + Verwaltungsgemeinkosten)",{"$nulls":6},{"$f":"I143+I144","v":{"v":0,"d":"0.00 €"}}]
[9,"Weiterleitung von Mitteln an Drittempfänger - ein detailliertes Budget muss eingereicht werden -",null,{"$f":"IF('1. Stammdaten (Empfänger)'!C20=\"Ja\",CONCATENATE(\"AUSFÜLLHILFE: \",TRIM(Beispiel!O69)),\"\")","v":"AUSFÜLLHILFE: Hier handelt es sich um Drittempfänger (Co-Implementierer). Es sind Partner die eigenständig einen Teil des Projekts umsetzten. Es muss ein gesondertes Budget eingereicht und eine kaufmännisch und rechtliche Eignungsprüfung (nur die Kriterien: Rechtspersönlichkeit und Gemeinnützigkeit) durch das GIZ-Projekt durchgeführt werden."},{"$nulls":4},{"$f":"SUM(I148:I153)","v":{"v":0,"d":"0.00 €"}}]
[null,"XYZ (Name Drittempfänger) ",null,1,"Einheit",1,"Weiterleitung",{"$f":"'Weiterleitung von Mitteln'!I116","v":{"v":0,"d":"0.00 €"}},{"$f":"D148*F148*H148","v":{"v":0,"d":"0.00 €"}},null,null,"Keine Änderung"]
[null,"XYZ (Name Drittempfänger) ",null,1,"Einheit",1,"Weiterleitung",{"v":0,"d":"0.00 €"},{"$f":"D149*F149*H149","v":{"v":0,"d":"0.00 €"}},null,null,"Keine Änderung"]
[null,"XYZ (Name Drittempfänger) ",null,1,"Einheit",1,"Weiterleitung",{"v":0,"d":"0.00 €"},{"$f":"D150*F150*H150","v":{"v":0,"d":"0.00 €"}},null,null,"Keine Änderung"]
[null,"XYZ (Name Drittempfänger) ",null,1,"Einheit",1,"Weiterleitung",{"v":0,"d":"0.00 €"},{"v":0,"d":"0.00 €"},null,null,"Keine Änderung"]
[null,"XYZ (Name Drittempfänger) ",null,1,"Einheit",1,"Weiterleitung",{"v":0,"d":"0.00 €"},{"v":0,"d":"0.00 €"},null,null,"Keine Änderung"]
[null,"XYZ (Name Drittempfänger) ",null,1,"Einheit",1,"Weiterleitung",{"v":0,"d":"0.00 €"},{"v":0,"d":"0.00 €"},null,"Anteile in Prozent ","Keine Änderung"]
[null,"GIZ Anteil (bis zu - gegen Nachweis)*",{"$nulls":6},{"$f":"I146+I147","v":{"v":0,"d":"0.00 €"}},null,{"$f":"IFERROR(I154/$I$164,\"\")","v":""}]
[10,"Eigenbeitrag/ Drittfinanzierung",null,{"$f":"IF('1. Stammdaten (Empfänger)'!C20=\"Ja\",CONCATENATE(\"AUSFÜLLHILFE: \",TRIM(Beispiel!O74)),\"\")","v":"AUSFÜLLHILFE: Geben Sie nur den Gesamtwert des Eigenbeitrags/der Drittfinanzierung an. Eine kurze Beschreibung der Anteilsfinanzierung ist in die Projektbeschreibung mit aufzunehmen."},{"$nulls":5},{"$f":"SUM(J156:J163)","v":{"v":0,"d":"0.00"}}]
[null,{"$f":"_xlfn.IFS('1. Stammdaten (Empfänger)'!C8=\"Nein\",\"kein finanzieller Eigenbeitrag\", '1. Stammdaten (Empfänger)'!C8=\"Ja\",'1. Stammdaten (Empfänger)'!C3, '1. Stammdaten (Empfänger)'!C8=\"Auswählen\", \"bitte füllen Sie die Stammdaten vollständig aus\",TRUE,\"\")","v":"bitte füllen Sie die Stammdaten vollständig aus"},null,1,"Einheit",1,"Beitrag ",{"$f":"IF('1. Stammdaten (Empfänger)'!C8=\"Ja\",'1. Stammdaten (Empfänger)'!E8,\"\")","v":""},null,{"$f":"H156","v":""},{"$f":"IFERROR(J156/$I$164,\"\")","v":""},"Keine Änderung"]
[null,{"$f":"_xlfn.IFS('1. Stammdaten (Empfänger)'!C9=0,\"Keine Drittmittelfinanzierung\",'1. Stammdaten (Empfänger)'!C9= \"Auswählen\",\"bitte füllen Sie die Stammdaten vollständig aus\", '1. Stammdaten (Empfänger)'!C9>0,'1. Stammdaten (Empfänger)'!E9,TRUE,\"\")","v":"bitte füllen Sie die Stammdaten vollständig aus"},null,1,"Einheit",1,"Beitrag ",{"$f":"_xlfn.IFS('1. Stammdaten (Empfänger)'!$C$9=\"Auswählen\", \"\",'1. Stammdaten (Empfänger)'!$C$9>0,'1. Stammdaten (Empfänger)'!G9, TRUE,\"\")","v":""},null,"",{"$f":"IFERROR(J157/$I$164,\"\")","v":""},"Keine Änderung"]
[null,{"$f":"_xlfn.IFS('1. Stammdaten (Empfänger)'!C9=0,\"Keine Drittmittelfinanzierung\",'1. Stammdaten (Empfänger)'!C9= \"Auswählen\",\"bitte füllen Sie die Stammdaten vollständig aus\", '1. Stammdaten (Empfänger)'!C9>1,'1. Stammdaten (Empfänger)'!E10,TRUE,\"\")","v":"bitte füllen Sie die Stammdaten vollständig aus"},null,1,"Einheit",1,"Beitrag ",{"$f":"_xlfn.IFS('1. Stammdaten (Empfänger)'!$C$9=\"Auswählen\", \"\",'1. Stammdaten (Empfänger)'!$C$9>1,'1. Stammdaten (Empfänger)'!G10, TRUE,\"\")","v":""},null,"","","Keine Änderung"]
[null,{"$f":"_xlfn.IFS('1. Stammdaten (Empfänger)'!C9=0,\"Keine Drittmittelfinanzierung\",'1. Stammdaten (Empfänger)'!C9= \"Auswählen\",\"bitte füllen Sie die Stammdaten vollständig aus\", '1. Stammdaten (Empfänger)'!C9>2,'1. Stammdaten (Empfänger)'!E11,TRUE,\"\")","v":"bitte füllen Sie die Stammdaten vollständig aus"},null,1,"Einheit",1,"Beitrag ",{"$f":"_xlfn.IFS('1. Stammdaten (Empfänger)'!$C$9=\"Auswählen\", \"\",'1. Stammdaten (Empfänger)'!$C$9>2,'1. Stammdaten (Empfänger)'!G11, TRUE,\"\")","v":""},null,"","","Keine Änderung"]
[null,{"$f":"_xlfn.IFS('1. Stammdaten (Empfänger)'!C9=0,\"Keine Drittmittelfinanzierung\",'1. Stammdaten (Empfänger)'!C9= \"Auswählen\",\"bitte füllen Sie die Stammdaten vollständig aus\", '1. Stammdaten (Empfänger)'!C9>3,'1. Stammdaten (Empfänger)'!E12,TRUE,\"\")","v":"bitte füllen Sie die Stammdaten vollständig aus"},null,1,"Einheit",1,"Beitrag ",{"$f":"_xlfn.IFS('1. Stammdaten (Empfänger)'!$C$9=\"Auswählen\", \"\",'1. Stammdaten (Empfänger)'!$C$9>3,'1. Stammdaten (Empfänger)'!G12, TRUE,\"\")","v":""},null,"","","Keine Änderung"]
[null,{"$f":"_xlfn.IFS('1. Stammdaten (Empfänger)'!C9=0,\"Keine Drittmittelfinanzierung\",'1. Stammdaten (Empfänger)'!C9= \"Auswählen\",\"bitte füllen Sie die Stammdaten vollständig aus\", '1. Stammdaten (Empfänger)'!C9>4,'1. Stammdaten (Empfänger)'!E13,TRUE,\"\")","v":"bitte füllen Sie die Stammdaten vollständig aus"},null,1,"Einheit",1,"Beitrag ",{"$f":"_xlfn.IFS('1. Stammdaten (Empfänger)'!$C$9=\"Auswählen\", \"\",'1. Stammdaten (Empfänger)'!$C$9>4,'1. Stammdaten (Empfänger)'!G13, TRUE,\"\")","v":""},null,"","","Keine Änderung"]
[null,{"$f":"_xlfn.IFS('1. Stammdaten (Empfänger)'!C9=0,\"Keine Drittmittelfinanzierung\",'1. Stammdaten (Empfänger)'!C9= \"Auswählen\",\"bitte füllen Sie die Stammdaten vollständig aus\", '1. Stammdaten (Empfänger)'!C9>5,'1. Stammdaten (Empfänger)'!E14,TRUE,\"\")","v":"bitte füllen Sie die Stammdaten vollständig aus"},null,1,"Einheit",1,"Beitrag ",{"$f":"_xlfn.IFS('1. Stammdaten (Empfänger)'!$C$9=\"Auswählen\", \"\",'1. Stammdaten (Empfänger)'!$C$9>5,'1. Stammdaten (Empfänger)'!G14, TRUE,\"\")","v":""},null,"","","Keine Änderung"]
[null,{"$f":"_xlfn.IFS('1. Stammdaten (Empfänger)'!C9=0,\"Keine Drittmittelfinanzierung\",'1. Stammdaten (Empfänger)'!C9= \"Auswählen\",\"bitte füllen Sie die Stammdaten vollständig aus\", '1. Stammdaten (Empfänger)'!C9>6,'1. Stammdaten (Empfänger)'!E15,TRUE,\"\")","v":"bitte füllen Sie die Stammdaten vollständig aus"},null,1,"Einheit",1,"Beitrag ",{"$f":"_xlfn.IFS('1. Stammdaten (Empfänger)'!$C$9=\"Auswählen\", \"\",'1. Stammdaten (Empfänger)'!$C$9>6,'1. Stammdaten (Empfänger)'!G15, TRUE,\"\")","v":""},null,{"$f":"H163","v":""},{"$f":"IFERROR(J163/$I$164,\"\")","v":""},"Keine Änderung"]
[null,"Gesamtfinanzierung ",{"$nulls":6},{"$f":"I154+J155","v":{"v":0,"d":"0.00 €"}},null,{"$f":"SUM(K154:K163)","v":{"v":0,"d":"0.00%"}}]
[]
[null,"*Alle Budgetlinien (mit Ausnahme der Verwaltungsgemeinkosten) müssen gegen Nachweis abgerechnet werden."]
[]
[null,"Information: Sofern Vergaben für externe Dienstleistungen und/oder für Sachgüter und/oder Lieferungen von GIZ Geldern finanziert werden sollen, müssen die relevanten Vergaberichtlinien gemäß Vertragstext eingehalten werden!"]
[]
[]
[null,"Einnahmen und Gewinne des Empfängers werden nicht finanziert. Interne Rechnungsstellungen zwischen Organisationseinheiten des Empfängers werden nicht finanziert."]
[]
[null,"Bei Vertragsergänzungen: Bitte nehmen Sie Budgetanpassungen auf Basis des zuletzt vertraglich vereinbartem Budgets  vor und markieren Sie die Änderungen farblich. Kosten, die aufgrund von Währungsschwankungen enstehen, können nicht von der GIZ übernommen werden."]

{"sheet":"Weiterleitung von Mitteln","index":2,"n_rows":125,"n_cols":14,"rows_kept":125,"merged":[[0,3,0,8],[3,1,3,7],[3,8,3,9],[4,3,4,7],[4,9,111,9],[31,3,31,7],[32,4,32,6],[33,4,33,6],[34,4,34,6],[35,4,35,6],[36,4,36,6],[37,4,37,6],[38,4,38,6],[39,4,39,6],[40,4,40,6],[41,4,41,6],[42,4,42,6],[43,4,43,6],[44,4,44,6],[45,4,45,6],[46,4,46,6],[47,4,47,6],[48,4,48,6],[49,3,49,7],[50,4,50,6],[51,4,51,6],[52,4,52,6],[53,4,53,6],[54,4,54,6],[55,4,55,6],[56,4,56,6],[57,4,57,6],[58,4,58,6],[59,4,59,6],[60,4,60,6],[61,4,61,6],[62,4,62,6],[63,4,63,6],[64,4,64,6],[65,4,65,6],[66,3,66,7],[67,4,67,6],[68,4,68,6],[69,4,69,6],[70,4,70,6],[71,4,71,6],[72,4,72,6],[73,4,73,6],[74,4,74,6],[75,4,75,6],[76,4,76,6],[77,4,77,6],[78,4,78,6],[79,4,79,6],[80,4,80,6],[81,4,81,6],[82,4,82,6],[83,3,83,7],[84,4,84,6],[85,4,85,6],[86,4,86,6],[87,4,87,6],[88,4,88,6],[89,4,89,6],[90,4,90,6],[91,4,91,6],[92,4,92,6],[93,4,93,6],[94,4,94,6],[95,4,95,6],[96,4,96,6],[97,4,97,6],[98,4,98,6],[99,4,99,6],[100,3,100,7],[107,3,107,7],[112,3,112,7],[117,1,117,9],[119,1,120,9],[121,1,121,9],[122,1,122,9],[124,1,124,9]]}
[null,"Budget/Finanzierungsplan - Anlage 1",null,"Name des Drittempfängers: ",{"$nulls":5},{"$f":"'1. Stammdaten (Empfänger)'!C22","v":"00:00:00"},{"$nulls":3},"Keine Änderung"]
[{"$nulls":13},"Änderung"]
[null,"Beschreibung","Code ","Menge","Einheit (z.B. Person, Fahrzeug, Raum…)","Anzahl","Einheit (z.B. Monate, Tage, Trainings…)","Förderfähig bis zu  \nin EUR \n(Preis pro Einheit) ","Gesamt \nGIZ Anteil \nin EUR (bis zu)","Eigenbeitrag / Dritt-finanzierung \nin EUR (bis zu) ",null,{"$f":"IF($L$4=\"VE\",CONCATENATE(\"Bei Vertragsanpassungen:\",CHAR(10),\"hat sich diese Budgetzeile geändert?\"),\"\")","v":""}]
[null,{"$f":"IF('1. Stammdaten (Empfänger)'!C20=\"Ja\",\"Hinweis: Blaue Felder durch den Drittempfänger auszufüllen\",\"\")","v":"Hinweis: Blaue Felder durch den Drittempfänger auszufüllen"},{"$nulls":6},{"$f":"IF('1. Stammdaten (Empfänger)'!C20=\"Ja\",\"Hinweis: Wird automatisch ausgefüllt\",\"\")","v":"Hinweis: Wird automatisch ausgefüllt"},null,null,{"$f":"IF('1. Stammdaten (Empfänger)'!C5=\"Vertragsanpassung\",\"VE\",\"NOVE\")","v":"NOVE"}]
[1,"Personal - Selbstkosten für Arbeit-nehmer*innen des ZE (Funktionsbezeichnung)\n(Hinweis 1: Nur Mitarbeiter/innen Ihrer Organisationen; \nder Nachweis dieser Budgetlinie muss in Form von Gehaltsabrechnungen bzw. bei Teilfinanzierungen in Form von Gehaltsabrechnungen und Zeitaufschrieben erfolgen; \nHinweis 2: Es können ausschließlich Personaleinzelkosten (Arbeitgeberbrutto) abgerechnet werden, Zuschläge wie Personalgemeinkosten, die anteilig auf Personal berechnet werden, sind nicht förderungsfähig)",null,{"$f":"IF('1. Stammdaten (Empfänger)'!C20=\"Ja\",CONCATENATE(\"AUSFÜLLHILFE: \",Beispiel!O5),\"\")","v":"AUSFÜLLHILFE: Die Spalte \"Förderfähig bis zu\" sollte immer das Arbeitgeberbrutto ausweisen. Bei Teilzeitstellen ist der Prozentsatz in Spalte D anzugeben. Bitte geben Sie an, welche gesetzlichen Personalnebenkosten für Ihr Land anfallen. Grundsätzlich finanzierbar sind Sozialabgaben, und arbeitsvertraglich oder tariflichvertraglich vereinbarte Zahlungen (ausgenommen sind Bonuszahlungen oder Gewinnbeteiligungen). Davon abweichende Nebenkosten müssen vor Vertragserstellung abgesprochen,  geprüft  und als Notiz in die Budgetzeile aufgenommen werden. Verträge über Minijobs oder studentische Hilfskräfte sind den Personalkosten zuzuordnen, auch wenn keine Sozialabgaben anfallen.                                                                                                                                                                                         Wenn anteilig mehrere Personen finanziert werden sollen (bspw. 3 Personen à 75% - bitte entsprechend die Anzahl der Monate erhöhen und die Anzahl der Personen in der Beschreibung der Budgetlinie aufnehmen."},{"$nulls":4},{"$f":"SUM(I6:I31)","v":{"v":0,"d":"0.00 €"}},"Die GIZ kann keine Budgetlinien anteilig übernehmen, mit Ausnahme der Hauptbudgetlinien \"Personalkosten\", die prozentual angesetzt werden können, sowie  \"Anteilige lokale Projektkosten\". \n\nWeitere Kosten, welche im Rahmen der Projektumsetzung anfallen und nicht durch die GIZ übernommen werden sollen, werden separat kalkuliert. Entweder als Eigenanteil, oder, falls einschlägig, als finanzieller Beitrag eines Dritten/ Drittfinanzierung.",{"$f":"IF(SUM(I5,#REF!,I32)>0.4*I115,1,0)","v":{"$error":"#REF!"}},{"$f":"IF(L4=\"VE\",\"ACHTUNG: Kosten, die aufgrund von Währungsschwankungen entstehen, können nicht von der GIZ übernommen werden.\",\"\")","v":""}]
[{"$nulls":4},"Person",null,"Monate",null,{"$f":"ROUND(D6*F6*H6,2)","v":{"v":0,"d":"0.00 €"}},null,null,"Keine Änderung"]
[{"$nulls":4},"Person",null,"Monate",null,{"$f":"ROUND(D7*F7*H7,2)","v":{"v":0,"d":"0.00 €"}},null,null,"Keine Änderung"]
[{"$nulls":4},"Person",null,"Monate",null,{"v":0,"d":"0.00 €"},null,null,"Keine Änderung"]
[{"$nulls":4},"Person",null,"Monate",null,{"v":0,"d":"0.00 €"},null,null,"Keine Änderung"]
[{"$nulls":4},"Person",null,"Monate",null,{"$f":"ROUND(D10*F10*H10,2)","v":{"v":0,"d":"0.00 €"}},null,null,"Keine Änderung"]
[{"$nulls":4},"Person",null,"Monate",null,{"v":0,"d":"0.00 €"},null,null,"Keine Änderung"]
[{"$nulls":4},"Person",null,"Monate",null,{"v":0,"d":"0.00 €"},null,null,"Keine Änderung"]
[{"$nulls":4},"Person",null,"Monate",null,{"v":0,"d":"0.00 €"},null,null,"Keine Änderung"]
[{"$nulls":4},"Person",null,"Monate",null,{"v":0,"d":"0.00 €"},null,null,"Keine Änderung"]
[{"$nulls":4},"Person",null,"Monate",null,{"v":0,"d":"0.00 €"},null,null,"Keine Änderung"]
[{"$nulls":4},"Person",null,"Monate",null,{"v":0,"d":"0.00 €"},null,null,"Keine Änderung"]
[{"$nulls":4},"Person",null,"Monate",null,{"v":0,"d":"0.00 €"},null,null,"Keine Änderung"]
[{"$nulls":4},"Person",null,"Monate",null,{"v":0,"d":"0.00 €"},null,null,"Keine Änderung"]
[{"$nulls":4},"Person",null,"Monate",null,{"v":0,"d":"0.00 €"},null,null,"Keine Änderung"]
[{"$nulls":4},"Person",null,"Monate",null,{"v":0,"d":"0.00 €"},null,null,"Keine Änderung"]
[{"$nulls":4},"Person",null,"Monate",null,{"v":0,"d":"0.00 €"},null,null,"Keine Änderung"]
[{"$nulls":4},"Person",null,"Monate",null,{"v":0,"d":"0.00 €"},null,null,"Keine Änderung"]
[{"$nulls":4},"Person",null,"Monate",null,{"v":0,"d":"0.00 €"},null,null,"Keine Änderung"]
[{"$nulls":4},"Person",null,"Monate",null,{"v":0,"d":"0.00 €"},null,null,"Keine Änderung"]
[{"$nulls":4},"Person",null,"Monate",null,{"v":0,"d":"0.00 €"},null,null,"Keine Änderung"]
[{"$nulls":4},"Person",null,"Monate",null,{"v":0,"d":"0.00 €"},null,null,"Keine Änderung"]
[{"$nulls":4},"Person",null,"Monate",null,{"v":0,"d":"0.00 €"},null,null,"Keine Änderung"]
[{"$nulls":4},"Person",null,"Monate",null,{"v":0,"d":"0.00 €"},null,null,"Keine Änderung"]
[{"$nulls":4},"Person",null,"Monate",null,{"v":0,"d":"0.00 €"},null,null,"Keine Änderung"]
[{"$nulls":4},"Person",null,"Monate",null,{"v":0,"d":"0.00 €"},null,null,"Keine Änderung"]
[{"$nulls":4},"Person",null,"Monate",null,{"v":0,"d":"0.00 €"},null,null,"Keine Änderung"]
[2,"Externe Dienstleistungen (Art/Inhalt der Leistung)",null,{"$f":"IF('1. Stammdaten (Empfänger)'!C20=\"Ja\",CONCATENATE(\"AUSFÜLLHILFE: \",Beispiel!O11),\"\")","v":"AUSFÜLLHILFE: Funktionstitel angeben; keine Details des Vertrages  (Arbeitsstunden etc); nur die Anzahl der Verträge und den geplanten Wert nennen (die relevanten Vergaberichtlinien gemäß Vertragstext müssen eingehalten werden!);  pro Vertrag sollte eine Budgetzeile verwendet werden;  alle Kosten, die im Rahmen der Leistungserbringung unter einem Dienstleistungsvertrag anfallen (bspw. Training, Reisen), werden in einer Budgetlinie dargestellt.                                                                                                                                                                                                              Veranstaltungen: Leistungen die vom selben Anbieter erbracht werden, sollen in einer Budgetzeile dargestellt werden. (z. Bsp: wenn Catering und der Veranstaltungsort von einem Hotel angeboten werden, dann gehören diese in eine Budgetzeile, wenn ein anderes Hotel für Übernachtungen gebucht wird, gehört dieses in eine einzelne Budgetlinie)  Einnahmen, die der Empfänger aus dem Veranstaltungsbetrieb erhält, können nicht aus dem Vertrag finanziert werden (z. Bsp Raummiete für eigene Räumlichkeiten). Nur tatsächliche nachweisbare Kosten werden finanziert."},{"$nulls":4},{"$f":"SUM(I33:I49)","v":{"v":0,"d":"0.00 €"}}]
[{"$nulls":4},"Vertrag",{"$nulls":3},{"$f":"ROUND(D33*H33,2)","v":{"v":0,"d":"0.00 €"}},null,null,"Keine Änderung"]
[{"$nulls":4},"Vertrag",{"$nulls":3},{"$f":"ROUND(D34*H34,2)","v":{"v":0,"d":"0.00 €"}},null,null,"Keine Änderung"]
[{"$nulls":4},"Vertrag",{"$nulls":3},{"v":0,"d":"0.00 €"},null,null,"Keine Änderung"]
[{"$nulls":4},"Vertrag",{"$nulls":3},{"v":0,"d":"0.00 €"},null,null,"Keine Änderung"]
[{"$nulls":4},"Vertrag",{"$nulls":3},{"v":0,"d":"0.00 €"},null,null,"Keine Änderung"]
[{"$nulls":4},"Vertrag",{"$nulls":3},{"v":0,"d":"0.00 €"},null,null,"Keine Änderung"]
[{"$nulls":4},"Vertrag",{"$nulls":3},{"v":0,"d":"0.00 €"},null,null,"Keine Änderung"]
[{"$nulls":4},"Vertrag",{"$nulls":3},{"v":0,"d":"0.00 €"},null,null,"Keine Änderung"]
[{"$nulls":4},"Vertrag",{"$nulls":3},{"v":0,"d":"0.00 €"},null,null,"Keine Änderung"]
[{"$nulls":4},"Vertrag",{"$nulls":3},{"v":0,"d":"0.00 €"},null,null,"Keine Änderung"]
[{"$nulls":4},"Vertrag",{"$nulls":3},{"v":0,"d":"0.00 €"},null,null,"Keine Änderung"]
[{"$nulls":4},"Vertrag",{"$nulls":3},{"v":0,"d":"0.00 €"},null,null,"Keine Änderung"]
[{"$nulls":4},"Vertrag",{"$nulls":3},{"v":0,"d":"0.00 €"},null,null,"Keine Änderung"]
[{"$nulls":4},"Vertrag",{"$nulls":3},{"v":0,"d":"0.00 €"},null,null,"Keine Änderung"]
[{"$nulls":4},"Vertrag",{"$nulls":3},{"v":0,"d":"0.00 €"},null,null,"Keine Änderung"]
[{"$nulls":4},"Vertrag",{"$nulls":3},{"v":0,"d":"0.00 €"},null,null,"Keine Änderung"]
[{"$nulls":4},"Vertrag",{"$nulls":3},{"v":0,"d":"0.00 €"},null,null,"Keine Änderung"]
[3,"Transportkosten / Reisekosten",null,{"$f":"IF('1. Stammdaten (Empfänger)'!C20=\"Ja\",CONCATENATE(\"AUSFÜLLHILFE: \",Beispiel!O22),\"\")","v":"AUSFÜLLHILFE: Zu Reisekosten zählen üblicherweise alle Arten von Transport, Übernachtungen, Tagegelder, Visa. Anderweitige Kosten sind bitte separat aufzuführen.  Die Abrechnung erfolgt anhand der Rechnungen und/oder der Reiserichtlinien des Empfängers und/oder gesetzlichen Vorgaben (zum Bsp: Bundesreisekostengesetz) . Eine Aufteilung in verschiedene Personengruppen ist nicht erwünscht.\n\nBitte geben Sie keine Menge der Flüge an - bei Abweichungen sind Vertragsergänzungen notwendig und solle ein Audit stattfinden wird die Zahl der Flüge geprüft."},{"$nulls":4},{"$f":"SUM(I51:I66)","v":{"v":0,"d":"0.00 €"}}]
[{"$nulls":8},{"$f":"ROUND(D51*H51,2)","v":{"v":0,"d":"0.00 €"}},null,null,"Keine Änderung"]
[{"$nulls":8},{"v":0,"d":"0.00 €"},null,null,"Keine Änderung"]
[{"$nulls":8},{"v":0,"d":"0.00 €"},null,null,"Keine Änderung"]
[{"$nulls":8},{"v":0,"d":"0.00 €"},null,null,"Keine Änderung"]
[{"$nulls":8},{"v":0,"d":"0.00 €"},null,null,"Keine Änderung"]
[{"$nulls":8},{"$f":"ROUND(D56*H56,2)","v":{"v":0,"d":"0.00 €"}},null,null,"Keine Änderung"]
[{"$nulls":8},{"$f":"ROUND(D57*H57,2)","v":{"v":0,"d":"0.00 €"}},null,null,"Keine Änderung"]
[{"$nulls":8},{"v":0,"d":"0.00 €"},null,null,"Keine Änderung"]
[{"$nulls":8},{"v":0,"d":"0.00 €"},null,null,"Keine Änderung"]
[{"$nulls":8},{"v":0,"d":"0.00 €"},null,null,"Keine Änderung"]
[{"$nulls":8},{"v":0,"d":"0.00 €"},null,null,"Keine Änderung"]
[{"$nulls":8},{"v":0,"d":"0.00 €"},null,null,"Keine Änderung"]
[{"$nulls":8},{"$f":"ROUND(D63*H63,2)","v":{"v":0,"d":"0.00 €"}},null,null,"Keine Änderung"]
[{"$nulls":8},{"v":0,"d":"0.00 €"},null,null,"Keine Änderung"]
[{"$nulls":8},{"v":0,"d":"0.00 €"},null,null,"Keine Änderung"]
[{"$nulls":8},{"v":0,"d":"0.00 €"},null,null,"Keine Änderung"]
[4,"Beschaffung von Sachgütern",null,{"$f":"IF('1. Stammdaten (Empfänger)'!C20=\"Ja\",CONCATENATE(\"AUSFÜLLHILFE: \",Beispiel!O35),\"\")","v":"AUSFÜLLHILFE: Güter, die beschafft und innerhalb von einer Rechnung nachgewiesen werden, sollten in einer Budgetzeile dargestellt werden. Z. B. kann IT Equipment als eine Budgetlinie aufgeführt werden - in diesem Fall sollte in Klammern näher definiert werden, welche Sachgüter voraussichtlich beschafft werden. Im Fall von Medikamente, Pestiziden oder Mineraldünger sind weitere Details für eine Freigabe notwendig. "},{"$nulls":4},{"$f":"SUM(I68:I83)","v":{"v":0,"d":"0.00 €"}}]
[{"$nulls":8},{"$f":"ROUND(D68*H68,2)","v":{"v":0,"d":"0.00 €"}},null,null,"Keine Änderung"]
[{"$nulls":8},{"v":0,"d":"0.00 €"},null,null,"Keine Änderung"]
[{"$nulls":8},{"v":0,"d":"0.00 €"},null,null,"Keine Änderung"]
[{"$nulls":8},{"v":0,"d":"0.00 €"},null,null,"Keine Änderung"]
[{"$nulls":8},{"v":0,"d":"0.00 €"},null,null,"Keine Änderung"]
[{"$nulls":8},{"v":0,"d":"0.00 €"},null,null,"Keine Änderung"]
[{"$nulls":8},{"v":0,"d":"0.00 €"},null,null,"Keine Änderung"]
[{"$nulls":8},{"$f":"ROUND(D75*H75,2)","v":{"v":0,"d":"0.00 €"}},null,null,"Keine Änderung"]
[{"$nulls":8},{"v":0,"d":"0.00 €"},null,null,"Keine Änderung"]
[{"$nulls":8},{"v":0,"d":"0.00 €"},null,null,"Keine Änderung"]
[{"$nulls":8},{"$f":"ROUND(D78*H78,2)","v":{"v":0,"d":"0.00 €"}},null,null,"Keine Änderung"]
[{"$nulls":8},{"v":0,"d":"0.00 €"},null,null,"Keine Änderung"]
[{"$nulls":8},{"v":0,"d":"0.00 €"},null,null,"Keine Änderung"]
[{"$nulls":8},{"v":0,"d":"0.00 €"},null,null,"Keine Änderung"]
[{"$nulls":8},{"v":0,"d":"0.00 €"},null,null,"Keine Änderung"]
[{"$nulls":8},{"v":0,"d":"0.00 €"},null,null,"Keine Änderung"]
[5,"Sonstige Kosten / Verbrauchsmaterialien",null,{"$f":"IF('1. Stammdaten (Empfänger)'!C20=\"Ja\",CONCATENATE(\"AUSFÜLLHILFE: \",TRIM(Beispiel!O46)),\"\")","v":"AUSFÜLLHILFE: Bitte beachten Sie dass indirekte Kosten unter die Verwaltungsgemeinkosten fallen. Es können nur direkte Kosten als einzelne Budgetlinien budgetiert werden.\nWenn Mietkosten angegeben werden können nur direkte Kosten, sprich die Kaltmiete, kalkuliert werden. Die Nebenkosten sind als indirekte Kosten und somit in die Verwaltungsgemeinkosten mit einzurechnen. \nIm Gegensatz zu beschafften Sachgütern, die über einen längeren Zeitraum verwendet werden, handelt es sich bei Verbrauchsmaterialien um Güter, die aufgebraucht werden - wie bspw. Druckerpatronen, Druckerpapier."},{"$nulls":4},{"$f":"SUM(I85:I100)","v":{"v":0,"d":"0.00 €"}}]
[{"$nulls":8},{"$f":"ROUND(D85*H85,2)","v":{"v":0,"d":"0.00 €"}},null,null,"Keine Änderung"]
[{"$nulls":8},{"$f":"ROUND(D86*H86,2)","v":{"v":0,"d":"0.00 €"}},null,null,"Keine Änderung"]
[{"$nulls":8},{"v":0,"d":"0.00 €"},null,null,"Keine Änderung"]
[{"$nulls":8},{"v":0,"d":"0.00 €"},null,null,"Keine Änderung"]
[{"$nulls":8},{"v":0,"d":"0.00 €"},null,null,"Keine Änderung"]
[{"$nulls":8},{"v":0,"d":"0.00 €"},null,null,"Keine Änderung"]
[{"$nulls":8},{"v":0,"d":"0.00 €"},null,null,"Keine Änderung"]
[{"$nulls":8},{"v":0,"d":"0.00 €"},null,null,"Keine Änderung"]
[{"$nulls":8},{"v":0,"d":"0.00 €"},null,null,"Keine Änderung"]
[{"$nulls":8},{"v":0,"d":"0.00 €"},null,null,"Keine Änderung"]
[{"$nulls":8},{"v":0,"d":"0.00 €"},null,null,"Keine Änderung"]
[{"$nulls":8},{"v":0,"d":"0.00 €"},null,null,"Keine Änderung"]
[{"$nulls":8},{"v":0,"d":"0.00 €"},null,null,"Keine Änderung"]
[{"$nulls":8},{"v":0,"d":"0.00 €"},null,null,"Keine Änderung"]
[{"$nulls":8},{"v":0,"d":"0.00 €"},null,null,"Keine Änderung"]
[{"$nulls":8},{"v":0,"d":"0.00 €"},null,null,"Keine Änderung"]
[6,"Mittel zur direkten Unterstützung von Drittbegünstigten\n(Hinweis: Diese Budgetlinie bezieht sich vorzugsweise auf Sachbeiträge an Drittbegünstigte, im Falle von finanziellen Beiträgen muss  klar dargestellt werden, wie Zahlungen nachgewiesen  werden. Das Auswahlverfahren für die Drittbegünstigten muss in der Projektbeschreibung verdeutlicht werden)",null,{"$f":"IF('1. Stammdaten (Empfänger)'!C20=\"Ja\",CONCATENATE(\"AUSFÜLLHILFE: \",TRIM(Beispiel!O57)),\"\")","v":"AUSFÜLLHILFE: Bitte den Hinweis in der Budgetzeile beachten. Nachweise müssen im Budget vereinbart und Auswahlkriterien in der Projektbeschreibung dargestellt werden. Wichtig: Hier handelt es sich nur um Begünstigte, die von dem Projekt des Empfängers profitieren. Dazu gehören Start-Up Förderung, Förderung von Initiativen, Cash for Work, Förderwettbewerbe, Stipendien und ähnliches. Absprache zu Nachweisen ist erforderlich. Zu den Details ist eine Beratung beim Vertragsmanagement notwendig."},{"$nulls":4},{"$f":"SUM(I102:I107)","v":{"v":0,"d":"0.00 €"}}]
[null,"XXX (Abrechnung erfolgt gegen…)",{"$nulls":6},{"$f":"ROUND(D102*F102*H102,2)","v":{"v":0,"d":"0.00 €"}},null,null,"Keine Änderung"]
[null,"XXX (Abrechnung erfolgt gegen…)",{"$nulls":6},{"$f":"ROUND(D103*F103*H103,2)","v":{"v":0,"d":"0.00 €"}},null,null,"Keine Änderung"]
[null,"XXX (Abrechnung erfolgt gegen…)",{"$nulls":6},{"$f":"ROUND(D104*F104*H104,2)","v":{"v":0,"d":"0.00 €"}},null,null,"Keine Änderung"]
[null,"XXX (Abrechnung erfolgt gegen…)",{"$nulls":6},{"v":0,"d":"0.00 €"},null,null,"Keine Änderung"]
[null,"XXX (Abrechnung erfolgt gegen…)",{"$nulls":6},{"v":0,"d":"0.00 €"},null,null,"Keine Änderung"]
[null,"XXX (Abrechnung erfolgt gegen…)",{"$nulls":6},{"v":0,"d":"0.00 €"},null,null,"Keine Änderung"]
[7,"Anteilige lokale Projektkosten (bspw. IT, Research)",null,{"$f":"IF('1. Stammdaten (Empfänger)'!C20=\"Ja\",CONCATENATE(\"AUSFÜLLHILFE: \",TRIM(Beispiel!O62)),\"\")","v":"AUSFÜLLHILFE: Diese Budgetlinie ist nur für Organisationen, die in ihren Buchhaltungssystemen mit einer Verteilung bzw. Umlage der Gemeinkosten arbeiten und diese entsprechend nachweisen können. Die Nachweisart wird für jeden Einzelfall festgelegt. Ein konkretes Beispiel ist der prozentuale Nachweis anhand der Gesamtkosten und Zeitaufschriebe."},{"$nulls":4},{"$f":"SUM(I109:I111)","v":{"v":0,"d":"0.00 €"}}]
[{"$nulls":8},{"$f":"ROUND(D109*F109*H109,2)","v":{"v":0,"d":"0.00 €"}},null,null,"Keine Änderung"]
[{"$nulls":8},{"$f":"ROUND(D110*F110*H110,2)","v":{"v":0,"d":"0.00 €"}},null,null,"Keine Änderung"]
[{"$nulls":8},{"$f":"ROUND(D111*F111*H111,2)","v":{"v":0,"d":"0.00 €"}},null,null,"Keine Änderung"]
[null,"Zwischensumme - direkte Kosten",{"$nulls":6},{"$f":"I108+I101+I84+I67+I50+I32+I5","v":{"v":0,"d":"0.00 €"}}]
[8,"Verwaltungsgemeinkosten ",null,{"$f":"IF('1. Stammdaten (Empfänger)'!C20=\"Ja\",CONCATENATE(\"AUSFÜLLHILFE: \",TRIM(Beispiel!O66)),\"\")","v":"AUSFÜLLHILFE: Die Verwaltungsgemeinkosten sollten 0% betragen. Diese werden normalerweise als Eigenbetrag des Finanzierungsempfängers übernommen. Wenn die Übernahme durch den Finanzierungsempfänger nicht möglich ist, kann die GIZ einen kleinen Anteil der Verwaltungsgemeinkosten übernehmen. Die Art und Höhe der Kosten wird ggf. durch einen Wirtschaftsprüfer überprüft. Wenn sich die Verwaltungsgemeinkosten auf weniger Budgetlinien beziehen ist eine Information ans Vertragsmanagement erforderlich."},{"$nulls":4},{"$f":"I114","v":{"v":0,"d":"0.00 €"}}]
[null,"Verwaltungsgemeinkosten (auf Budgetlinie 1-X)",null,{"v":0,"d":"0.00%"},{"$nulls":3},{"$f":"I112","v":{"v":0,"d":"0.00 €"}},{"$f":"D114*H114","v":{"v":0,"d":"0.00 €"}},null,null,"Keine Änderung"]
[null,"Zwischensumme - Finanzierung durch GIZ (bis zu - gegen Nachweis)*\n(direkte Kosten + Verwaltungsgemeinkosten)",{"$nulls":6},{"$f":"I112+I113","v":{"v":0,"d":"0.00 €"}}]
[null,"GIZ Anteil (bis zu - gegen Nachweis)*",{"$nulls":6},{"$f":"I115","v":{"v":0,"d":"0.00 €"}}]
[]
[null,"*Alle Budgetlinien (mit Ausnahme der Verwaltungsgemeinkosten) müssen gegen Nachweis abgerechnet werden."]
[]
[null,"Information: Sofern Vergaben für externe Dienstleistungen und/oder für Sachgüter und/oder Lieferungen von GIZ Geldern finanziert werden sollen, müssen die relevanten Vergaberichtlinien gemäß Vertragstext eingehalten werden!"]
[]
[]
[null,"Einnahmen und Gewinne des Drittempfängers werden nicht finanziert. Interne Rechnungsstellungen zwischen Organisationseinheiten des Drittempfängers werden nicht finanziert."]
[]
[null,"Bei Vertragsergänzungen: Bitte nehmen Sie Budgetanpassungen auf Basis des zuletzt vertraglich vereinbartem Budgets  vor und markieren Sie die Änderungen farblich. Kosten, die aufgrund von Währungsschwankungen enstehen, können nicht von der GIZ übernommen werden."]

{"sheet":"Beispiel","index":3,"n_rows":89,"n_cols":15,"rows_kept":89,"merged":[[0,0,0,8],[3,1,3,7],[3,8,3,9],[4,3,4,7],[4,9,64,9],[4,14,8,14],[10,3,10,7],[10,14,19,14],[11,4,11,6],[12,4,12,6],[13,4,13,6],[14,4,14,6],[15,4,15,6],[16,4,16,6],[17,4,17,6],[18,4,18,6],[19,4,19,6],[20,4,20,6],[21,3,21,7],[21,14,28,14],[22,4,22,6],[23,4,23,6],[24,4,24,6],[25,4,25,6],[26,4,26,6],[27,4,27,6],[28,4,28,6],[29,3,29,7],[34,3,34,7],[34,14,43,14],[35,4,35,6],[36,4,36,6],[37,4,37,6],[38,4,38,6],[39,4,39,6],[40,4,40,6],[41,4,41,6],[42,4,42,6],[43,4,43,6],[44,4,44,6],[45,3,45,7],[45,14,53,14],[46,4,46,6],[47,4,47,6],[48,4,48,6],[49,4,49,6],[50,4,50,6],[51,4,51,6],[52,4,52,6],[53,4,53,6],[54,4,54,6],[55,4,55,6],[56,3,56,7],[56,14,59,14],[61,3,61,7],[61,14,63,14],[62,4,62,6],[64,1,64,7],[65,14,66,14],[68,3,68,7],[68,14,70,14],[73,14,75,14],[78,1,78,7],[78,8,78,9],[80,1,80,10],[81,1,81,9],[82,1,83,9],[84,1,84,9],[85,1,85,9],[88,1,89,9],[88,14,90,14]]}
["Budget/Finanzierungsplan - Anlage 1",{"$nulls":8},{"$f":"'1. Stammdaten (Empfänger)'!C33","v":"00:00:00"},{"$nulls":4},"Bearbeitungshinweise:\nDies dient nur zur Orientierung für den Reiter \"Budget Finanzierungen\". "]
[]
[null,"Beschreibung","Code","Anzahl ","Einheit (z.B. Person, Fahrzeug, Raum…)","Anzahl","Einheit (z.B. Monate, Tage, Trainings…)","Förderfähig bis zu  \nin EUR \n(Preis pro Einheit) ","Gesamt \nGIZ Anteil \nin EUR (bis zu)","Eigenbeitrag / Dritt-finanzierung \nin EUR (bis zu) ",{"$nulls":4},"Generelle Hinweise: \nDieses Format des Budgets gilt als Abrechnungsgrundlage. Sie können gerne für Ihren internen Gebrauch weitere Dateien mit ausführlicheren Informationen erstellen.\nAlle Positionen, die im Budget aufgeführt sind, müssen sich in der Projektbeschreibung wiederfinden, um den Projektbezug ersichtlich zu machen. \nDie Tabelle ist mit Formeln gespeist, welche beibehalten werden müssen.  \nBitte behalten Sie die Formatierung mit zwei Nachkommastellen bei. \nEs empfiehlt sich, Einheiten, wenn möglich, aufzurunden. Die Kosten werden mit einem Wert \"bis zu\" vereinbart. "]
[null,"Hinweis: Blaue Felder durch den Zuschussempfänger auszufüllen",{"$nulls":6},"Hinweis: Wird automatisch ausgefüllt",{"$nulls":5},"Hinweise für die Erstellung "]
[1,"Personal - Selbstkosten für Arbeit-nehmer*innen des ZE (Funktionsbezeichnung)\n(Hinweis 1: Nur Mitarbeiter/innen Ihrer Organisationen; \nder Nachweis dieser Budgetlinie muss in Form von Gehaltsabrechnungen bzw. bei Teilfinanzierungen in Form von Gehaltsabrechnungen und Zeitaufschrieben erfolgen; \nHinweis 2: Es können ausschließlich Personaleinzelkosten (Arbeitgeberbrutto) abgerechnet werden, Zuschläge wie Personalgemeinkosten, die anteilig auf Personal berechnet werden, sind nicht förderungsfähig)",{"$nulls":6},{"$f":"SUM(I6:I10)","v":{"v":94000,"d":"94,000.00"}},"Die GIZ kann keine Budgetlinien anteilig übernehmen, mit Ausnahme der Hauptbudgetlinien \"Personalkosten\", die prozentual angesetzt werden können, sowie  \"Anteilige lokale Projektkosten\". \n\nWeitere Kosten, welche im Rahmen der Projektumsetzung anfallen und nicht durch die GIZ übernommen werden sollen, werden separat kalkuliert. Entweder als Eigenanteil, oder, falls einschlägig, als finanzieller Beitrag eines Dritten/ Drittfinanzierung.",{"$nulls":4},"Die Spalte \"Förderfähig bis zu\" sollte immer das Arbeitgeberbrutto ausweisen. Bei Teilzeitstellen ist der Prozentsatz in Spalte D anzugeben. Bitte geben Sie an, welche gesetzlichen Personalnebenkosten für Ihr Land anfallen. Grundsätzlich finanzierbar sind Sozialabgaben, und arbeitsvertraglich oder tariflichvertraglich vereinbarte Zahlungen (ausgenommen sind Bonuszahlungen oder Gewinnbeteiligungen). Davon abweichende Nebenkosten müssen vor Vertragserstellung abgesprochen,  geprüft  und als Notiz in die Budgetzeile aufgenommen werden. Verträge über Minijobs oder studentische Hilfskräfte sind den Personalkosten zuzuordnen, auch wenn keine Sozialabgaben anfallen.                                                                                                                                                                                         Wenn anteilig mehrere Personen finanziert werden sollen (bspw. 3 Personen à 75% - bitte entsprechend die Anzahl der Monate erhöhen und die Anzahl der Personen in der Beschreibung der Budgetlinie aufnehmen."]
[null,"Projektmanager",null,{"v":1,"d":"100%"},"Person ",20,"Monate ",{"v":3000,"d":"3,000.00"},{"$f":"D6*F6*H6","v":{"v":60000,"d":"60,000.00"}}]
[null,"Finanzmanager ",null,{"v":0.5,"d":"50%"},"Person ",20,"Monate ",{"v":2200,"d":"2,200.00"},{"$f":"D7*F7*H7","v":{"v":22000,"d":"22,000.00"}}]
[null,"Severance Payments / gesetzlich geregelte Rückstellungen",null,{"v":1,"d":"100%"},"Person ",20,"Monate ",{"v":600,"d":"600.00"},{"$f":"D8*F8*H8","v":{"v":12000,"d":"12,000.00"}}]
[{"$nulls":4},"Person ",null,"Monate ",null,{"v":0,"d":"0.00"}]
[{"$nulls":4},"Person ",null,"Monate ",null,{"v":0,"d":"0.00"}]
[2,"Externe Dienstleistungen (Position bzw. Funktion)\n",{"$nulls":6},{"$f":"SUM(I12:I21)","v":{"v":7000,"d":"7,000.00"}},{"$nulls":5},"Funktionstitel angeben; keine Details des Vertrages  (Arbeitsstunden etc); nur die Anzahl der Verträge und den geplanten Wert nennen (die relevanten Vergaberichtlinien gemäß Vertragstext müssen eingehalten werden!);  pro Vertrag sollte eine Budgetzeile verwendet werden;  alle Kosten, die im Rahmen der Leistungserbringung unter einem Dienstleistungsvertrag anfallen (bspw. Training, Reisen), werden in einer Budgetlinie dargestellt.                                                                                                                                                                                                              Veranstaltungen: Leistungen die vom selben Anbieter erbracht werden, sollen in einer Budgetzeile dargestellt werden. (z. Bsp: wenn Catering und der Veranstaltungsort von einem Hotel angeboten werden, dann gehören diese in eine Budgetzeile, wenn ein anderes Hotel für Übernachtungen gebucht wird, gehört dieses in eine einzelne Budgetlinie)  Einnahmen, die der Empfänger aus dem Veranstaltungsbetrieb erhält, können nicht aus dem Vertrag finanziert werden (z. Bsp Raummiete für eigene Räumlichkeiten). Nur tatsächliche nachweisbare Kosten werden finanziert."]
[null,"Moderation",null,1,"Vertrag",null,null,{"v":5000,"d":"5,000.00"},{"$f":"D12*H12","v":{"v":5000,"d":"5,000.00"}}]
[null,"Catering & Raummiete",null,1,"Vertrag",null,null,{"v":2000,"d":"2,000.00"},{"$f":"D13*H13","v":{"v":2000,"d":"2,000.00"}}]
[null,"Expert*in für Solartechnik",null,null,"Vertrag",{"$nulls":3},{"v":0,"d":"0.00"}]
[null,"Expert*in für …..",null,null,"Vertrag",{"$nulls":3},{"v":0,"d":"0.00"}]
[null,"externe Arbeitskräfte ( nicht im sozialversicherungpfl. Angestellenverhältnis mit Empfänger)",null,null,"Vertrag",{"$nulls":3},{"v":0,"d":"0.00"}]
[null,"Beratungsaufträge",null,null,"Vertrag",{"$nulls":3},{"v":0,"d":"0.00"}]
[null,"externe Unternehmen, z.B. für Bus-Transporte",null,null,"Vertrag",{"$nulls":3},{"v":0,"d":"0.00"}]
[{"$nulls":4},"Vertrag",{"$nulls":3},{"v":0,"d":"0.00"}]
[{"$nulls":4},"Vertrag",{"$nulls":3},{"v":0,"d":"0.00"}]
[{"$nulls":4},"Vertrag",{"$nulls":3},{"v":0,"d":"0.00"}]
[3,"Transportkosten / Reisekosten",{"$nulls":6},{"$f":"SUM(I23:I32)","v":{"v":4500,"d":"4,500.00"}},{"$nulls":5},"Zu Reisekosten zählen üblicherweise alle Arten von Transport, Übernachtungen, Tagegelder, Visa. Anderweitige Kosten sind bitte separat aufzuführen.  Die Abrechnung erfolgt anhand der Rechnungen und/oder der Reiserichtlinien des Empfängers und/oder gesetzlichen Vorgaben (zum Bsp: Bundesreisekostengesetz) . Eine Aufteilung in verschiedene Personengruppen ist nicht erwünscht.\n\nBitte geben Sie keine Menge der Flüge an - bei Abweichungen sind Vertragsergänzungen notwendig und solle ein Audit stattfinden wird die Zahl der Flüge geprüft."]
[null,"internationale Flüge",null,1,"Einheit",null,null,{"v":4000,"d":"4,000.00"},{"$f":"D23*H23","v":{"v":4000,"d":"4,000.00"}}]
[null,"nationale Flüge",null,1,"Einheit",null,null,{"v":500,"d":"500.00"},{"$f":"D24*H24","v":{"v":500,"d":"500.00"}}]
[null,"internationale Reisekosten ( Tage-/ Übernachtungsgeld, Transportmittel, Visa, notwendige Impfungen )",{"$nulls":6},{"v":0,"d":"0.00"}]
[null,"nationale Reisekosten  ( Tage-/Übernachtungsgeld, Transportmittel )",{"$nulls":6},{"v":0,"d":"0.00"}]
[null,"Transportkosten von Waren",{"$nulls":6},{"v":0,"d":"0.00"}]
[null,"Reisekosten der Workshop-Teilnehmenden",{"$nulls":6},{"v":0,"d":"0.00"}]
[{"$nulls":8},{"v":0,"d":"0.00"}]
[null,"4. Co2 Kompensationen",{"$nulls":6},{"v":0,"d":"0.00"},null,"möglicherweise erstmal raus"]
[{"$nulls":8},{"v":0,"d":"0.00"}]
[{"$nulls":8},{"v":0,"d":"0.00"}]
[{"$nulls":8},{"v":0,"d":"0.00"}]
[{"$nulls":8},{"v":0,"d":"0.00"}]
[4,"Beschaffung von Sachgütern",{"$nulls":6},{"$f":"SUM(I36:I45)","v":{"v":4000,"d":"4,000.00"}},{"$nulls":5},"Güter, die beschafft und innerhalb von einer Rechnung nachgewiesen werden, sollten in einer Budgetzeile dargestellt werden. Z. B. kann IT Equipment als eine Budgetlinie aufgeführt werden - in diesem Fall sollte in Klammern näher definiert werden, welche Sachgüter voraussichtlich beschafft werden. Im Fall von Medikamente, Pestiziden oder Mineraldünger sind weitere Details für eine Freigabe notwendig. "]
[null,"IT Equipment (Laptop, Drucker, Beamer, Zubehör)",null,1,"Beschaffung",null,null,{"v":4000,"d":"4,000.00"},{"$f":"D36*H36","v":{"v":4000,"d":"4,000.00"}}]
[null,"Fotoausrüstung (Kamera und Zubehör)",null,1,"Beschaffung",{"$nulls":3},{"$f":"D37*H37","v":{"v":0,"d":"0.00"}}]
[null,"Maschine XY (konkrete Angabe, welche Maschine - aber kein konkretes Modell einer Firma nennen!)",null,null,"Beschaffung",{"$nulls":3},{"v":0,"d":"0.00"}]
[null,"Mobiliar  (Schreibtische, Stühle, Schränke)",null,null,"Beschaffung",{"$nulls":3},{"v":0,"d":"0.00"}]
[null,"Fahrzeuge genau angeben, welche Art:  z.B. Elektroauto, gepanzerter SUV, Motorroller ...",null,null,"Beschaffung",{"$nulls":3},{"v":0,"d":"0.00"}]
[null,"Mobiltelefone",null,null,"Beschaffung",{"$nulls":3},{"v":0,"d":"0.00"}]
[{"$nulls":8},{"v":0,"d":"0.00"}]
[{"$nulls":8},{"v":0,"d":"0.00"}]
[{"$nulls":8},{"v":0,"d":"0.00"}]
[{"$nulls":8},{"v":0,"d":"0.00"}]
[5,"Sonstige Kosten / Verbrauchsmaterialien",{"$nulls":6},{"$f":"SUM(I47:I56)","v":{"v":100,"d":"100.00"}},{"$nulls":5},"Bitte beachten Sie dass indirekte Kosten unter die Verwaltungsgemeinkosten fallen. Es können nur direkte Kosten als einzelne Budgetlinien budgetiert werden.\nWenn Mietkosten angegeben werden können nur direkte Kosten, sprich die Kaltmiete, kalkuliert werden. Die Nebenkosten sind als indirekte Kosten und somit in die Verwaltungsgemeinkosten mit einzurechnen.                                                                      \nIm Gegensatz zu beschafften Sachgütern, die über einen längeren Zeitraum verwendet werden, handelt es sich bei Verbrauchsmaterialien um Güter, die aufgebraucht werden - wie bspw. Druckerpatronen, Druckerpapier."]
[null,"Büromaterialien (Druckerpapier, Druckerpatronen, Schreibmaterialien)",null,1,"Einheit",null,null,{"v":100,"d":"100.00"},{"$f":"D47*H47","v":{"v":100,"d":"100.00"}}]
[null,"IT-Software, Lizensen",{"$nulls":6},{"$f":"D48*H48","v":{"v":0,"d":"0.00"}}]
[null,"Verpackungsmaterial für xxx",{"$nulls":6},{"v":0,"d":"0.00"}]
[null,"Laborbedarf",{"$nulls":6},{"v":0,"d":"0.00"}]
[null,"Hygienebedarf",{"$nulls":6},{"v":0,"d":"0.00"}]
[null,"Werkzeug",{"$nulls":6},{"v":0,"d":"0.00"}]
[null,"Wasser",{"$nulls":6},{"v":0,"d":"0.00"}]
[null,"Flyer / Werbematerial",{"$nulls":6},{"v":0,"d":"0.00"}]
[null,"Telefonkosten, Telefonkarten…",{"$nulls":6},{"v":0,"d":"0.00"}]
[{"$nulls":8},{"v":0,"d":"0.00"}]
[6,"Mittel zur direkten Unterstützung von Drittbegünstigten\n(Hinweis: Diese Budgetlinie bezieht sich vorzugsweise auf Sachbeiträge an Drittbegünstigte, im Falle von finanziellen Beiträgen muss  klar dargestellt werden, wie Zahlungen nachgewiesen  werden. Das Auswahlverfahren für die Drittbegünstigten muss in der Projektbeschreibung verdeutlicht werden)",{"$nulls":6},{"$f":"SUM(I58:I61)","v":{"v":600,"d":"600.00"}},{"$nulls":5},"Bitte den Hinweis in der Budgetzeile beachten. Nachweise müssen im Budget vereinbart und Auswahlkriterien in der Projektbeschreibung dargestellt werden. Wichtig: Hier handelt es sich nur um Begünstigte, die von dem Projekt des Empfängers profitieren. Dazu gehören Start-Up Förderung, Förderung von Initiativen, Cash for Work, Förderwettbewerbe, Stipendien und ähnliches. Absprache zu Nachweisen ist erforderlich. Zu den Details ist eine Beratung beim Vertragsmanagement notwendig. "]
[null,"Cash for Work (Abrechnung erfolgt gegen Teilnahmeliste, Empfangsbestätigung per Unterschrift oder Fingerabdruck; Auswahlverfahren ist in der Projektbeschreibung dargestellt)",null,10,"Personen",20,"Tage",{"v":3,"d":"3.00"},{"$f":"D58*F58*H58","v":{"v":600,"d":"600.00"}}]
[{"$nulls":8},{"$f":"D59*F59*H59","v":{"v":0,"d":"0.00"}}]
[{"$nulls":8},{"v":0,"d":"0.00"}]
[{"$nulls":8},{"v":0,"d":"0.00"}]
[7,"Anteilige lokale Projektkosten (bspw. IT, Research)",{"$nulls":6},{"$f":"SUM(I63:I64)","v":{"v":0,"d":"0.00"}},{"$nulls":5},"Diese Budgetlinie ist nur für Organisationen, die in ihren Buchhaltungssystemen mit einer Verteilung bzw. Umlage der Gemeinkosten arbeiten und diese entsprechend nachweisen können. Die Nachweisart wird für jeden Einzelfall festgelegt. Ein konkretes Beispiel ist der prozentuale Nachweis anhand der Gesamtkosten und Zeitaufschriebe."]
[{"$nulls":4},"Einheit",{"$nulls":3},{"$f":"D63*H63","v":{"v":0,"d":"0.00"}}]
[{"$nulls":8},{"$f":"D64*F64*H64","v":{"v":0,"d":"0.00"}}]
[null,"Zwischensumme - direkte Kosten",{"$nulls":6},{"$f":"I46+I35+I11+I5+I22+I30+I57","v":{"v":110200,"d":"110,200.00"}}]
[8,"Verwaltungsgemeinkosten ",{"$nulls":6},{"$f":"I67","v":{"v":5510,"d":"5,510.00"}},{"$nulls":5},"Die Verwaltungsgemeinkosten sollten 0% betragen. Diese werden normalerweise als Eigenbetrag des Finanzierungsempfängers übernommen. Wenn die Übernahme durch den Finanzierungsempfänger nicht möglich ist, kann die GIZ einen kleinen Anteil der Verwaltungsgemeinkosten übernehmen. Die Art und Höhe der Kosten wird ggf. durch einen Wirtschaftsprüfer überprüft. Wenn sich die Verwaltungsgemeinkosten auf weniger Budgetlinien beziehen ist eine Information ans Vertragsmanagement erforderlich. "]
[null,"Verwaltungsgemeinkosten (auf Budgetlinie 1-7) ",null,{"v":0.05,"d":"5%"},{"$nulls":3},{"$f":"I65","v":{"v":110200,"d":"110,200.00"}},{"$f":"D67*H67","v":{"v":5510,"d":"5,510.00"}}]
[null,"Zwischensumme - Finanzierung durch GIZ (bis zu - gegen Nachweis)*\n(direkte Kosten + Verwaltungsgemeinkosten)",{"$nulls":6},{"$f":"I65+I66","v":{"v":115710,"d":"115,710.00"}}]
[9,"Weiterleitung von Mitteln an Drittempfänger  - ein detailliertes Budget muss eingereicht werden -",{"$nulls":12},"Hier handelt es sich um Drittempfänger (Co-Implementierer). Es sind Partner die eigenständig einen Teil des Projekts umsetzten. Es muss ein gesondertes Budget eingereicht und eine kaufmännisch und rechtliche Eignungsprüfung (nur die Kriterien: Rechtspersönlichkeit und Gemeinnützigkeit) durch das GIZ-Projekt durchgeführt werden. "]
[null,"OPQ",null,1,"Einheit",1,"Weiterleitung",{"v":10000,"d":"10,000.00"},{"$f":"D70*F70*H70","v":{"v":10000,"d":"10,000.00 €"}}]
[null,"XYZ (Name Drittempfänger) ",null,1,"Einheit",1,"Weiterleitung",null,{"$f":"D71*F71*H71","v":{"v":0,"d":"0.00 €"}}]
[null,"XYZ (Name Drittempfänger) ",null,1,"Einheit",1,"Weiterleitung",null,{"v":0,"d":"0.00 €"},null,"Anteile in Prozent "]
[null,"GIZ Anteil (bis zu - gegen Nachweis)*",{"$nulls":6},{"$f":"I68","v":{"v":115710,"d":"115,710.00 €"}},{"$f":"I73","v":{"v":115710,"d":"115,710.00 €"}},{"$f":"J73/$I$79","v":{"v":0.8852421390865274,"d":"88.52%"}}]
[{"$f":"10","v":10},"Eigenbeitrag / Drittfinanzierung",{"$nulls":7},{"$f":"SUM(J75:J77)","v":{"v":15000,"d":"15,000.00"}},{"$nulls":4},"Geben Sie nur den Gesamtwert des Eigenbeitrags/der Drittfinanzierung an. Eine kurze Beschreibung der Anteilsfinanzierung ist in die Projektbeschreibung mit aufzunehmen. "]
[null,"ABC(Eigenbeitrag)",null,1,"Einheit",1,"Beitrag ",{"v":5000,"d":"5,000.00"},null,{"$f":"H75","v":{"v":5000,"d":"5,000.00"}},{"$f":"J75/$I$79","v":{"v":0.03825262030449086,"d":"3.83%"}}]
[null,"DEF (Drittfinanzierung)",null,1,"Einheit",1,"Beitrag ",{"v":10000,"d":"10,000.00"},null,{"$f":"H76","v":{"v":10000,"d":"10,000.00"}},{"v":0.07650524060898171,"d":"7.65%"}]
[{"$nulls":3},1,"Einheit",1,"Beitrag ",{"$f":"_xlfn.IFS('1. Stammdaten (Empfänger)'!$C$9=\"Auswählen\", \"\",'1. Stammdaten (Empfänger)'!$C$9>0,'1. Stammdaten (Empfänger)'!G26, TRUE,\"\")","v":""},null,"",{"$f":"IFERROR(J77/$I$79,\"\")","v":""}]
[{"$nulls":3},1,"Einheit",1,"Beitrag ",{"$f":"_xlfn.IFS('1. Stammdaten (Empfänger)'!$C$9=\"Auswählen\", \"\",'1. Stammdaten (Empfänger)'!$C$9>0,'1. Stammdaten (Empfänger)'!G27, TRUE,\"\")","v":""},null,{"$f":"H78","v":""},{"$f":"IFERROR(J78/$I$79,\"\")","v":""}]
[null,"Gesamtfinanzierung ",{"$nulls":6},{"$f":"I73+J74","v":{"v":130710,"d":"130,710.00 €"}},null,{"$f":"SUM(K73:K78)","v":{"v":0.9999999999999999,"d":"100.00%"}}]
[]
[null,"*Alle Budgetlinien (mit Ausnahme der Verwaltungsgemeinkosten) müssen gegen Nachweis abgerechnet werden."]
[]
[null,"Information: Sofern Vergaben für externe Dienstleistungen und/oder für Sachgüter und/oder Lieferungen von GIZ Geldern finanziert werden sollen, müssen die relevanten Vergaberichtlinien gemäß Vertragstext eingehalten werden!"]
[]
[]
[null,"Einnahmen und Gewinne des Empfängers werden nicht finanziert. Interne Rechnungsstellungen zwischen Organisationseinheiten des Empfängers werden nicht finanziert."]
[]
[]
[null,"Bei Vertragsergänzungen: Bitte nehmen Sie Budgetanpassungen auf Basis des zuletzt vertraglich vereinbartem Budgets vor und markieren Sie die Änderungen farblich. Kosten, die aufgrund von Währungsschwankungen enstehen, können nicht von der GIZ übernommen werden.",{"$nulls":12},"Im Antrag auf Änderung des Vertrages sollen die Budgetumwidmungen erläutert werden. Insbesondere bei der Erhöhung von Personalkosten ist eine Begründung zu nennen. "]